Workbook

Sheet Inicio FPlp
A25: Descargue la versión Kindle

Sheet Cobb-Douglas R3 FPlp (hidden)
A1: FUNCIONES DE PRODUCCIÓN DE LP | M1: 1
A3: COBB-DOUGLAS EN R3
B6: y | C6: ='Oculto FPlp'!GD2 -> 20.0
B7: A | C7: 1.0
B8: q1 | C8: 20.0
B9: a | C9: 0.5
B10: q2 | C10: 20.0
B11: b | C11: 0.5
B12: Inserte los valores correspondientes
B13: PMgq1 | C13: ='Oculto FPlp'!GD10 -> 0.5
B14: PMgq2 | C14: ='Oculto FPlp'!GD11 -> 0.5
B15: RTS | C15: ='Oculto FPlp'!GD12 -> -1.0
B28: Títulos
B29: Resultados
B30: Insertar datos

Sheet Cobb-Douglas R2 FPlp (hidden)
A1: FUNCIONES DE PRODUCCIÓN DE LP
A3: COBB-DOUGLAS
B9: y | C9: ='Oculto FPlp'!FT25 -> 160.0
B10: A | C10: 2.0
B11: q1 | C11: 100.0
B12: a | C12: 0.5
B13: q2 | C13: 64.0
B14: 1-a | C14: ='Oculto FPlp'!FR26 -> 0.5
C15: Inserte los valores correspondientes
B17: Cambio de producción
B18: 40.0
B19: Inserte el nivel de las funciones de producción en rojo y rosa
B21: PMgq1 | C21: ='Oculto FPlp'!FP28 -> 0.8
B22: PMgq2 | C22: ='Oculto FPlp'!FP29 -> 1.3
B23: RTS | C23: ='Oculto FPlp'!FP30 -> -0.6
B27: Títulos
B28: Resultados
B29: Insertar datos

Sheet Cobb-Douglas Especial FPlpRE (hidden)
A1: FUNCIONES DE PRODUCCIÓN DE LP
A3: COBB-DOUGLAS (a,b)
C8: Iso orig | D8: Iso 1 | E8: Iso 2
B9: y | C9: ='Oculto FPlp'!HF25 -> 105.6 | D9: ='Oculto FPlp'!HG25 -> 105.6 | E9: ='Oculto FPlp'!HH25 -> 105.6
B10: A | C10: 2.0 | D10: ='Oculto FPlp'!HG26 -> 2.0 | E10: ='Oculto FPlp'!HH26 -> 2.0
B11: q1 | C11: 100.0 | D11: =C11 -> 100.0 | E11: =C11 -> 100.0
B12: a | C12: 0.5 | D12: ='Oculto FPlp'!HG28 -> 0.5 | E12: ='Oculto FPlp'!HH28 -> 0.5
B13: q2 | C13: 64.0 | D13: ='Oculto FPlp'!HG29 -> 64.0 | E13: ='Oculto FPlp'!HH29 -> 64.0
B14: b | C14: 0.4 | D14: ='Oculto FPlp'!HG30 -> 0.4 | E14: ='Oculto FPlp'!HH30 -> 0.4
C15: Inserte los valores correspondientes
C17: Iso orig | D17: Iso 1 | E17: Iso 2
B18: RTS | C18: ='Oculto FPlp'!HF39 -> -0.80 | D18: ='Oculto FPlp'!HG39 -> -0.80 | E18: ='Oculto FPlp'!HH39 -> -0.80
B19: Dq1 | C19: 0.00% | D19: ='Oculto FPlp'!HG32 -> 0.00% | E19: ='Oculto FPlp'!HH32 -> 0.00%
B20: Dy | C20: 0.00% | D20: ='Oculto FPlp'!HG33 -> 0.00% | E20: ='Oculto FPlp'!HH33 -> 0.00%
B21: RENDIMIENTOS | C21: ='Oculto FPlp'!HG34 -> DECRECIENTES
B28: Títulos
B29: Resultados
B30: Insertar datos

Sheet Sustitutos FPlp (hidden)
A1: FUNCIONES DE PRODUCCIÓN DE LP
A3: SUSTITUTOS PERFECTOS
B10: y | C10: a | D10: q1 | E10: b | F10: q2
B11: ='Oculto FPlp'!F28 -> 30.0 | C11: 1.0 | D11: 20.0 | E11: 4.0 | F11: 40.0
B12: Inserte los valores correspondientes de la función de producción (original)
B15: Cambio de producción
B16: 10.0
B17: Inserte el nivel de las funciones de producción en rojo y rosa
B19: PMgq1 | C19: ='Oculto FPlp'!J30 -> 1.0
B20: PMgq2 | C20: ='Oculto FPlp'!J31 -> 0.3
B21: RTS | C21: ='Oculto FPlp'!J32 -> -4.00
B27: Títulos
B28: Resultados
B29: Insertar datos

Sheet Sustitutos FPlpRE (hidden)
A1: FUNCIONES DE PRODUCCIÓN DE LP
A3: SUSTITUTOS PERFECTOS
C8: Iso orig | D8: Iso 1 | E8: Iso 2
B9: y | C9: ='Oculto FPlp'!IJ28 -> 15.2 | D9: ='Oculto FPlp'!IJ29 -> 15.2 | E9: ='Oculto FPlp'!IJ30 -> 15.2
B10: a | C10: 1.0 | D10: ='Oculto FPlp'!IK29 -> 1.0 | E10: ='Oculto FPlp'!IK30 -> 1.0
B11: q1 | C11: 10.0 | D11: =C11 -> 10.0 | E11: =C11 -> 10.0
B12: b | C12: 1.0 | D12: ='Oculto FPlp'!IM29 -> 1.0 | E12: ='Oculto FPlp'!IM30 -> 1.0
B13: q2 | C13: 20.0 | D13: ='Oculto FPlp'!IN29 -> 20.0 | E13: ='Oculto FPlp'!IN30 -> 20.0
C14: Inserte los valores correspondientes
B16: Parámetro "S"
B17: 0.8
C19: Iso orig | D19: Iso 1 | E19: Iso 2
B20: RTS | C20: ='Oculto FPlp'!IN36 -> -1.00 | D20: ='Oculto FPlp'!IO36 -> -1.00 | E20: ='Oculto FPlp'!IP36 -> -1.00
B21: Dq1 | C21: 0.00% | D21: ='Oculto FPlp'!IP29 -> 100.00% | E21: ='Oculto FPlp'!IP30 -> 100.00%
B22: Dy | C22: 0.00% | D22: ='Oculto FPlp'!IJ38 -> 100.00% | E22: ='Oculto FPlp'!IJ39 -> 100.00%
B23: RENDIMIENTOS | C23: ='Oculto FPlp'!IL38 -> DECRECIENTES
B27: Títulos
B28: Resultados
B29: Insertar datos

Sheet Complementarios FPlp (hidden)
A1: FUNCIONES DE PRODUCCIÓN DE LP
A3: COMPLEMENTOS PERFECTOS
B10: y | C10: a | D10: q1 | E10: b | F10: q2
B11: =MIN(D13,E13) -> 100.0 | C11: 1.0 | D11: 100.0 | E11: 2.0 | F11: 200.0
B12: Inserte los valores corres-pondientes de la función de producción (original) | D12: q1/a | E12: q2/b
D13: =D11/C11 -> 100.0 | E13: =F11/E11 -> 100.0
B16: Cambio de producción
B17: 50.0
B18: Inserte el nivel de las funciones de producción en rojo y rosa
B21: Relación Técnica de Sustitución
B22: PMgq1 | C22: Cero
B23: PMgq2 | C23: Infinita
B24: RTS | C24: Indeterminada
B26: Títulos
B27: Resultados
B28: Insertar datos
E65536: 1

Sheet Complementarios FPlpRE (hidden)
A1: FUNCIONES DE PRODUCCIÓN DE LP
A3: COMPLEMENTARIOS PERFECTOS
C8: Iso orig | D8: Iso 1 | E8: Iso 2
B9: y | C9: ='Oculto FPlp'!BH27 -> 2000.0 | D9: ='Oculto FPlp'!BH28 -> 2000.0 | E9: ='Oculto FPlp'!BH29 -> 2000.0
B10: a | C10: 1.0 | D10: 1.0 | E10: 1.0
B11: q1 | C11: 40.0 | D11: =C11 -> 40.0 | E11: =C11 -> 40.0
B12: b | C12: 2.0 | D12: =C12 -> 2.0 | E12: =C12 -> 2.0
B13: q2 | C13: =C12*C11 -> 80.0 | D13: ='Oculto FPlp'!BL28 -> 80 | E13: ='Oculto FPlp'!BL29 -> 80.0
B14: Inserte los valores correspondientes de la función de producción
B16: Parámetro "S" | E16: y=(1,1)
B17: 1.0 | E17: 50.0
C19: Iso orig | D19: Iso 1 | E19: Iso 2
B20: q1/a | C20: ='Oculto FPlp'!BK33 -> 40.00 | D20: ='Oculto FPlp'!BK34 -> 40.00 | E20: ='Oculto FPlp'!BK35 -> 40.00
B21: q2/b | C21: ='Oculto FPlp'!BL33 -> 40.00 | D21: ='Oculto FPlp'!BL34 -> 40.00 | E21: ='Oculto FPlp'!BL35 -> 40.00
B22: Dq1 | C22: 0.00% | D22: ='Oculto FPlp'!BQ28 -> 0.00% | E22: ='Oculto FPlp'!BQ29 -> 0.00%
B23: Dy | C23: 0.00% | D23: ='Oculto FPlp'!BP28 -> 0.00% | E23: ='Oculto FPlp'!BP29 -> 0.00%
B24: RENDIMIENTOS | C24: ='Oculto FPlp'!BH37 -> CONSTANTES
B26: Relación Técnica de Sustitución
B27: RMS | C27: Indeterminada
B28: q1 | C28: Tiende a infinito
B29: q2 | C29: Cero
B31: Títulos
B32: Resultados
B33: Insertar datos
E65536: 1

Sheet Cobb-Douglas Especial FPlp (hidden)
A1: FUNCIONES DE PRODUCCIÓN DE LP
A3: COBB-DOUGLAS
B9: y | C9: ='Oculto FPlp'!EY25 -> 10,000.0
B10: A | C10: 1.0
B11: q1 | C11: 100.0
B12: a | C12: 1.0
B13: q2 | C13: 100.0
B14: b | C14: 1.0
C15: Inserte los valores correspondientes
B17: Cambio de producción
B18: 3,000.0
B19: Inserte el nivel de las funciones de producción en rojo y rosa
B21: PMgq1 | C21: ='Oculto FPlp'!EY37 -> 100.0
B22: PMgq2 | C22: ='Oculto FPlp'!EY38 -> 100.0
B23: RTS | C23: ='Oculto FPlp'!EY39 -> -1.0
B27: Títulos
B28: Resultados
B29: Insertar Datos

Sheet Oculto FPlp (hidden)
A1: SUSTITUTOS PERFECTOS | K1: FILTRO | R1: COMPLEMENTARIOS PERFECTOS | BH1: COMPLEMENTARIOS PERFECTOS FPLPRE | CN1: 2ª Curva | DR1: 3ª Curva | EX1: REGULARES (COBB-DOUGLAS ALFA Y BETA) | FM1: COBB-DOUGLAS | GC1: COBB-DOUGLAS R3 | HE1: REGULARES (COBB-DOUGLAS ALFA Y BETA) | IE1: SUSTITUTOS PERFECTOS
A2: Unidades | B2: ponderador | C2: x1 | D2: x2 | E2: x2+ | F2: x2- | G2: x1line | I2: x2line | K2: x1 | L2: x2 | M2: x2+ | N2: x2- | Q2: Ponderador | R2: Unidades | S2: ponderador | T2: x1 | U2: x1f | V2: q2 | W2: q2f | X2: x1 line | Z2: x2 line | AB2: xdad | AD2: x1 | AE2: x1f | AF2: q2 | AG2: q2f | AH2: x1 line | AJ2: x2 line | AL2: xbad | AN2: x1 | AO2: x1f | AP2: q2 | AQ2: q2f | AR2: x1 line | AT2: x2 line | AV2: xdad | BG2: Ponderador | BH2: Unidades | BI2: ponderador | BJ2: x1 | BK2: x1f | BL2: q2 | BM2: q2f | BN2: x1 line | BP2: x2 line | BR2: xdad | BT2: x1 | BU2: x1f | BV2: q2 | BW2: q2f | BX2: x1 line | BZ2: x2 line | CB2: xbad | CD2: x1 | CE2: x1f | CF2: q2 | CG2: q2f | CH2: x1 line | CJ2: x2 line | CL2: xdad | CN2: x1 | CO2: x1f | CP2: q2 | CQ2: q2f | CR2: x1 line | CT2: x2 line | CV2: xdad | CX2: x1 | CY2: x1f | CZ2: q2 | DA2: q2f | DB2: x1 line | DD2: x2 line | DF2: xbad | DH2: x1 | DI2: x1f | DJ2: q2 | DK2: q2f | DL2: x1 line | DN2: x2 line | DP2: xdad | DR2: x1 | DS2: x1f | DT2: q2 | DU2: q2f | DV2: x1 line | DX2: x2 line | DZ2: xdad | EB2: x1 | EC2: x1f | ED2: q2 | EE2: q2f | EF2: x1 line | EH2: x2 line | EJ2: xbad | EL2: x1 | EM2: x1f | EN2: q2 | EO2: q2f | EP2: x1 line | ER2: x2 line | ET2: xdad | EX2: Unidades | EY2: ponderador | EZ2: x1 | FA2: X2F1 | FB2: X2F2 | FC2: X2F3 | FD2: 4.0 | FE2: X1 PONDE | FF2: Q1LINE | FH2: Q2LINE | FJ2: 19.0 | FM2: Unidades | FN2: ponderador | FO2: x1 | FP2: X2F1 | FQ2: X2F1 | FR2: X2F1 | FS2: 4 | FT2: ponde x1 | FY2: 19.0 | GC2: Nivel | GD2: =GD3*GD4^GD5*GD6^GD7 -> 20.0 | GI2: =HC3 -> 0.05 | GJ2: =GI2+$HC$3 -> 0.10 | GK2: =GJ2+$HC$3 -> 0.15 | GL2: 0.20 | GM2: 0.25 | GN2: 0.30 | GO2: 0.35 | GP2: 0.40 | GQ2: 0.45 | GR2: 0.50 | GS2: 0.55 | GT2: 0.60 | GU2: 0.65 | GV2: 0.70 | GW2: 0.75 | GX2: 0.80 | GY2: 0.85 | GZ2: 0.90 | HA2: 0.95 | HB2: 1.00 | HE2: Unidades | HF2: ponderador | HG2: x1 | HH2: X2F1 | HI2: X2F2 | HJ2: X2F3 | HK2: 6.0 | HL2: X1 PONDE | HM2: Q1LINE ORIG | HO2: Q2LINE ORIG | HQ2: 19.0 | HS2: Q1LINE 1 | HW2: Q2LINE 1 | HY2: Q1LINE 2 | IA2: Q2LINE 2 | IE2: Unidades | IF2: ponderador | IG2: x1 | IH2: x2 | II2: x2+ | IJ2: x2- | IK2: x1line orig | IM2: x2line orig | IO2: x1line 1 | IQ2: x2line 1 | IS2: x1line 1 | IU2: x2line 1
A3: 1 | B3: 0 | C3: =B3*(($F$28+$F$32)) -> 0 | D3: =($F$28*$I$28)-(($I$28/$G$28)*C3) -> 120.00 | E3: =(($F$28+$F$32)*$I$28)-(($I$28/$G$28)*C3) -> 160.00 | F3: =(($F$28-$F$32)*$I$28)-(($I$28/$G$28)*C3) -> 80.00 | G3: ='Sustitutos FPlp'!$D$11 -> 20.00 | H3: =I3*B3 -> 0.00 | I3: ='Sustitutos FPlp'!$F$11 -> 40.00 | J3: =G3*B3 -> 0 | K3: =IF($E3>$E$26,C3,K2) -> 0 | L3: =IF($E3>$E$26,D3,L2) -> 120.00 | M3: =IF($E3>$E$26,E3,M2) -> 160.00 | N3: =IF($E3>$E$26,F3,N2) -> 80.00 | Q3: 0 | R3: 1 | S3: 1.00 | T3: =$V$28+($U$26*Q3) -> 100.00 | U3: =$W$26 -> 200.00 | V3: =$V$28 -> 100.00 | W3: =$W$26+($W$26*Q3) -> 200.00 | X3: =Q3*$V$28 -> 0 | Y3: =$W$26 -> 200.00 | Z3: =$V$28 -> 100.00 | AA3: =Q3*$W$26 -> 0 | AB3: =$U$26 -> 100.00 | AC3: =Q3*$W$26 -> 0 | AD3: =$U$26+($U$26*Q3) -> 100.00 | AE3: =$U$28*$V$26 -> 200.00 | AF3: =$U$26 -> 100.00 | AG3: =$AE$3+($W$26*Q3) -> 200.00 | AH3: =Q3*$U$28 -> 0 | AI3: =$AE$3 -> 200.00 | AJ3: =$U$26 -> 100.00 | AK3: =AI3*Q3 -> 0 | AL3: =$U$26*Q3 -> 0 | AM3: =$W$26 -> 200.00 | AN3: =IF($V$28<$U$28,T3,AD3) -> 100.00 | AO3: =IF($V$28<$U$28,U3,AE3) -> 200.00 | AP3: =IF($V$28<$U$28,V3,AF3) -> 100.00 | AQ3: =IF($V$28<$U$28,W3,AG3) -> 200.00 | AR3: 0 | AS3: =IF($V$28<$U$28,Y3,AI3) -> 200.00 | AT3: =IF($V$28<$U$28,Z3,AJ3) -> 100.00 | AU3: =IF($V$28<$U$28,AA3,AK3) -> 0 | AV3: =IF($V$28<$U$28,AB3,AL3) -> 0 | AW3: =IF($V$28<$U$28,AC3,AM3) -> 200.00 | AX3: =AN3+($S$32*S3) -> 150.00 | AY3: =AO3+$S$32 -> 250.00 | AZ3: =AP3+$S$32 -> 150.00 | BA3: =AQ3+(S3*$S$32) -> 250.00 | BB3: =AN3-($S$32*S3) -> 50.00 | BC3: =AO3-$S$32 -> 150.00 | BD3: =AP3-$S$32 -> 50.00 | BE3: =AQ3-(S3*$S$32) -> 150.00 | BG3: 0 | BH3: 1 | BI3: 1.00 | BJ3: =$BL$33+($BJ$27*$BG3) -> 40.00 | BK3: =$BL$27 -> 80.00 | BL3: =$BL$33 -> 40.00 | BM3: =$BL$27+($BL$27*$BG3) -> 80.00 | BN3: =$BG3*$BL$33 -> 0 | BO3: =$BL$27 -> 80.00 | BP3: =$BL$33 -> 40.00 | BQ3: =$BG3*$BL$27 -> 0 | BR3: =$BJ$27 -> 40.00 | BS3: =$BG3*$BL$27 -> 0 | BT3: =$BJ$27+($BJ$27*$BG3) -> 40.00 | BU3: =$BK$33*$BK$27 -> 80.00 | BV3: =$BJ$27 -> 40.00 | BW3: =$BU$3+($BL$27*$BG3) -> 80.00 | BX3: =$BG3*$BK$33 -> 0 | BY3: =BU3 -> 80.00 | BZ3: =$BJ$27 -> 40.00 | CA3: =$BY3*$BG3 -> 0 | CB3: =$BJ$27*$BG3 -> 0 | CC3: =$BL$27 -> 80.00 | CD3: =IF($BL$33<$BK$33,BJ3,BT3) -> 40.00 | CE3: 80.00 | CF3: 40.00 | CG3: 80.00 | CH3: 0 | CI3: 80.00 | CJ3: 40.00 | CK3: 0 | CL3: 0 | CM3: 80.00 | CN3: =$BL$34+($BJ$28*$BG3) -> 40.00 | CO3: =$BL$28 -> 80.00 | CP3: =$BL$34 -> 40.00 | CQ3: =$BL$28+($BL$28*$BG3) -> 80.00 | CR3: =$BG3*$BL$34 -> 0 | CS3: =$BL$28 -> 80.00 | CT3: =$BL$34 -> 40.00 | CU3: =$BG3*$BL$28 -> 0 | CV3: =$BJ$28 -> 40.00 | CW3: =$BG3*$BL$28 -> 0 | CX3: =$BJ$28+($BJ$28*$BG3) -> 40.00 | CY3: =$BK$34*$BK$28 -> 80.00 | CZ3: =$BJ$28 -> 40.00 | DA3: =CY3+($BL$28*$BG3) -> 80.00 | DB3: =$BG3*$BK$34 -> 0 | DC3: =$CY3 -> 80.00 | DD3: =$BJ$28 -> 40.00 | DE3: =$DC3*$BG3 -> 0 | DF3: =$BJ$28*$BG3 -> 0 | DG3: =$BL$28 -> 80.00 | DH3: =IF($BL$34<$BK$34,CN3,CX3) -> 40.00 | DI3: 80.00 | DJ3: 40.00 | DK3: 80.00 | DL3: 0 | DM3: 80.00 | DN3: 40.00 | DO3: 0 | DP3: 0 | DQ3: 80.00 | DR3: =$BL$35+($BJ$29*$BG3) -> 40.00 | DS3: =$BL$29 -> 80.00 | DT3: =$BL$35 -> 40.00 | DU3: =$BL$29+($BL$29*$BG3) -> 80.00 | DV3: =$BG3*$BL$35 -> 0 | DW3: =$BL$29 -> 80.00 | DX3: =$BL$35 -> 40.00 | DY3: =$BG3*$BL$29 -> 0 | DZ3: =$BJ$29 -> 40.00 | EA3: =$BG3*$BL$29 -> 0 | EB3: =$BJ$29+($BJ$29*$BG3) -> 40.00 | EC3: =$BK$35*$BK$29 -> 80.00 | ED3: =$BJ$29 -> 40.00 | EE3: =$EC$3+($BL$29*$BG3) -> 80.00 | EF3: =$BG3*$BK$35 -> 0 | EG3: =EC3 -> 80.00 | EH3: =$BJ$29 -> 40.00 | EI3: =$EG3*$BG3 -> 0 | EJ3: =$BJ$29*$BG3 -> 0 | EK3: =$BL$29 -> 80.00 | EL3: =IF($BL$35<$BK$35,DR3,EB3) -> 40.00 | EM3: 80.00 | EN3: 40.00 | EO3: 80.00 | EP3: 0 | EQ3: 80.00 | ER3: 40.00 | ES3: 0 | ET3: 0 | EU3: 80.00 | EX3: 2 | EY3: 1.00 | EZ3: =$EY$27*FE3 -> 25.00 | FA3: =($EY$25/($EY$26*(EZ3^($EY$28))))^(1/$EY$30) -> 400.00 | FB3: =(($EY$25+$EX$34)/($EY$26*(EZ3^($EY$28))))^(1/$EY$30) -> 520.00 | FC3: =(($EY$25-$EX$34)/($EY$26*(EZ3^($EY$28))))^(1/$EY$30) -> 280.00 | FD3: =1/$FD$2 -> 0.25 | FE3: =FD3 -> 0.3 | FF3: =$EY$27 -> 100.0 | FG3: =$EY$29*FK3 -> 0 | FH3: =$EY$29 -> 100.0 | FI3: =$EY$27*FK3 -> 0 | FK3: 0 | FM3: 2 | FN3: 1.00 | FO3: =$FP$25*FT3 -> 25.00 | FP3: =(($FT$25/($FP$27*(FO3^($FP$26)))))^(1/$FR$26) -> 256.00 | FQ3: =((($FT$25+$FT$26)/($FP$27*(FO3^($FP$26)))))^(1/$FR$26) -> 400.00 | FR3: =((($FT$25-$FT$26)/($FP$27*(FO3^($FP$26)))))^(1/$FR$26) -> 144.00 | FS3: =1/$FS$2 -> 0.25 | FT3: =FS3 -> 0.25 | FU3: =$FP$25 -> 100.00 | FV3: =$FR$25*FZ3 -> 0 | FW3: =$FR$25 -> 64.00 | FX3: =$FP$25*FZ3 -> 0 | FZ3: 0 | GC3: A | GD3: ='Cobb-Douglas R3 FPlp'!C7 -> 1.0 | GH3: 0 | GI3: =$GD$4*GI2 -> 1.00 | GJ3: =$GD$4*GJ2 -> 2.00 | GK3: 3.00 | GL3: 4.00 | GM3: 5.00 | GN3: 6.00 | GO3: 7.00 | GP3: 8.00 | GQ3: 9.00 | GR3: 10.00 | GS3: 11.00 | GT3: 12.00 | GU3: 13.00 | GV3: 14.00 | GW3: 15.00 | GX3: 16.00 | GY3: 17.00 | GZ3: 18.00 | HA3: 19.00 | HB3: 20.00 | HC3: =1/20 -> 0.05 | HE3: 2 | HF3: 1.00 | HG3: =$HF$27*HL3 -> 16.67 | HH3: =($HF$25/($HF$26*($HG3^($HF$28))))^(1/$HF$30) -> 600.99 | HI3: =($HG$25/($HG$26*($HG3^($HG$28))))^(1/$HG$30) -> 600.99 | HJ3: =($HH$25/($HH$26*($HG3^($HH$28))))^(1/$HH$30) -> 600.99 | HK3: =1/$HK$2 -> 0.2 | HL3: =HK3 -> 0.2 | HM3: =$HF$27 -> 100.0 | HN3: =$HF$29*HR3 -> 0 | HO3: =$HF$29 -> 64.0 | HP3: =$HF$27*HR3 -> 0 | HQ3: =1/$HQ$2 -> 0.1 | HR3: 0 | HS3: =$HG$27 -> 100.0 | HV3: =$HG$29*HR3 -> 0 | HW3: =$HG$29 -> 64.0 | HX3: =$HG$27*HR3 -> 0 | HY3: =$HH$27 -> 100.0 | HZ3: =$HH$29*HR3 -> 0 | IA3: =$HH$29 -> 64.0 | IB3: =$HH$27*HR3 -> 0 | IE3: 1 | IF3: 0 | IG3: =(((LARGE($IJ$28:$IJ$30,1)))^(1/$IJ$36))*IF3 -> 0 | IH3: =(POWER($IJ$28,1/$IJ$36)/$IM$28)-(($IK$28/$IM$28)*$IG3) -> 30.00 | II3: =(POWER($IJ$29,1/$IJ$36)/$IM$29)-(($IK$29/$IM$29)*$IG3) -> 30.00 | IJ3: =(POWER($IJ$30,1/$IJ$36)/$IM$30)-(($IK$30/$IM$30)*$IG3) -> 30.00 | IK3: =$IL$28 -> 10.00 | IL3: =IM3*IF3 -> 0.00 | IM3: =$IN$28 -> 20.00 | IN3: =IK3*IF3 -> 0 | IO3: =$IL$29 -> 10.00 | IP3: =IQ3*IF3 -> 0.00 | IQ3: =$IN$29 -> 20.00 | IR3: =IO3*IF3 -> 0 | IS3: =$IL$30 -> 10.00 | IT3: =IU3*IF3 -> 0 | IU3: =$IN$30 -> 20.00 | IV3: =IS3*IF3 -> 0
A4: 2 | B4: 0.05 | C4: =B4*(($F$28+$F$32)) -> 2.00 | D4: =($F$28*$I$28)-(($I$28/$G$28)*C4) -> 112.00 | E4: =(($F$28+$F$32)*$I$28)-(($I$28/$G$28)*C4) -> 152.00 | F4: =(($F$28-$F$32)*$I$28)-(($I$28/$G$28)*C4) -> 72.00 | G4: ='Sustitutos FPlp'!$D$11 -> 20.00 | H4: 2.00 | I4: ='Sustitutos FPlp'!$F$11 -> 40.00 | J4: 1.00 | K4: 2.00 | L4: 112.00 | M4: 152.00 | N4: 72.00 | Q4: =1/20 -> 0.05 | R4: 2 | S4: 1.05 | T4: =$V$28+($U$26*Q4) -> 105.00 | U4: =$W$26 -> 200.00 | V4: =$V$28 -> 100.00 | W4: =$W$26+($W$26*Q4) -> 210.00 | X4: =Q4*$V$28 -> 5.00 | Y4: =$W$26 -> 200.00 | Z4: =$V$28 -> 100.00 | AA4: =Q4*$W$26 -> 10.00 | AB4: =$U$26 -> 100.00 | AC4: =Q4*$W$26 -> 10.00 | AD4: =$U$26+($U$26*Q4) -> 105.00 | AE4: =$U$28*$V$26 -> 200.00 | AF4: =$U$26 -> 100.00 | AG4: =$AE$3+($W$26*Q4) -> 210.00 | AH4: =Q4*$U$28 -> 5.00 | AI4: =$AE$3 -> 200.00 | AJ4: =$U$26 -> 100.00 | AK4: 10.00 | AL4: =$U$26*Q4 -> 5.00 | AM4: =$W$26 -> 200.00 | AN4: =IF($V$28<$U$28,T4,AD4) -> 105.00 | AO4: 200.00 | AP4: 100.00 | AQ4: 210.00 | AR4: =IF($V$28<$U$28,X4,AH4) -> 5.00 | AS4: =IF($V$28<$U$28,Y4,AI4) -> 200.00 | AT4: =IF($V$28<$U$28,Z4,AJ4) -> 100.00 | AU4: =IF($V$28<$U$28,AA4,AK4) -> 10.00 | AV4: =IF($V$28<$U$28,AB4,AL4) -> 5.00 | AW4: =IF($V$28<$U$28,AC4,AM4) -> 200.00 | AX4: =AN4+($S$32*S4) -> 157.50 | AY4: =AO4+$S$32 -> 250.00 | AZ4: =AP4+$S$32 -> 150.00 | BA4: =AQ4+(S4*$S$32) -> 262.50 | BB4: =AN4-($S$32*S4) -> 52.50 | BC4: =AO4-$S$32 -> 150.00 | BD4: =AP4-$S$32 -> 50.00 | BE4: =AQ4-(S4*$S$32) -> 157.50 | BG4: =1/20 -> 0.05 | BH4: 2 | BI4: 1.05 | BJ4: =$BL$33+($BJ$27*$BG4) -> 42.00 | BK4: =$BL$27 -> 80.00 | BL4: =$BL$33 -> 40.00 | BM4: =$BL$27+($BL$27*$BG4) -> 84.00 | BN4: =$BG4*$BL$33 -> 2.00 | BO4: =$BL$27 -> 80.00 | BP4: =$BL$33 -> 40.00 | BQ4: =$BG4*$BL$27 -> 4.00 | BR4: =$BJ$27 -> 40.00 | BS4: =$BG4*$BL$27 -> 4.00 | BT4: =$BJ$27+($BJ$27*$BG4) -> 42.00 | BU4: =$BK$33*$BK$27 -> 80.00 | BV4: =$BJ$27 -> 40.00 | BW4: =$BU$3+($BL$27*$BG4) -> 84.00 | BX4: =$BG4*$BK$33 -> 2.00 | BY4: =BU4 -> 80.00 | BZ4: =$BJ$27 -> 40.00 | CA4: =$BY4*$BG4 -> 4.00 | CB4: =$BJ$27*$BG4 -> 2.00 | CC4: =$BL$27 -> 80.00 | CD4: =IF($BL$33<$BK$33,BJ4,BT4) -> 42.00 | CE4: =IF($BL$33<$BK$33,BK4,BU4) -> 80.00 | CF4: =IF($BL$33<$BK$33,BL4,BV4) -> 40.00 | CG4: =IF($BL$33<$BK$33,BM4,BW4) -> 84.00 | CH4: =IF($BL$33<$BK$33,BN4,BX4) -> 2.00 | CI4: =IF($BL$33<$BK$33,BO4,BY4) -> 80.00 | CJ4: =IF($BL$33<$BK$33,BP4,BZ4) -> 40.00 | CK4: =IF($BL$33<$BK$33,BQ4,CA4) -> 4.00 | CL4: =IF($BL$33<$BK$33,BR4,CB4) -> 2.00 | CM4: =IF($BL$33<$BK$33,BS4,CC4) -> 80.00 | CN4: =$BL$34+($BJ$28*$BG4) -> 42.00 | CO4: =$BL$28 -> 80.00 | CP4: =$BL$34 -> 40.00 | CQ4: =$BL$28+($BL$28*$BG4) -> 84.00 | CR4: =$BG4*$BL$34 -> 2.00 | CS4: =$BL$28 -> 80.00 | CT4: =$BL$34 -> 40.00 | CU4: =$BG4*$BL$28 -> 4.00 | CV4: =$BJ$28 -> 40.00 | CW4: =$BG4*$BL$28 -> 4.00 | CX4: =$BJ$28+($BJ$28*$BG4) -> 42.00 | CY4: =$BK$34*$BK$28 -> 80.00 | CZ4: =$BJ$28 -> 40.00 | DA4: =CY4+($BL$28*$BG4) -> 84.00 | DB4: =$BG4*$BK$34 -> 2.00 | DC4: =$CY4 -> 80.00 | DD4: =$BJ$28 -> 40.00 | DE4: =$DC4*$BG4 -> 4.00 | DF4: =$BJ$28*$BG4 -> 2.00 | DG4: =$BL$28 -> 80.00 | DH4: =IF($BL$34<$BK$34,CN4,CX4) -> 42.00 | DI4: =IF($BL$34<$BK$34,CO4,CY4) -> 80.00 | DJ4: =IF($BL$34<$BK$34,CP4,CZ4) -> 40.00 | DK4: =IF($BL$34<$BK$34,CQ4,DA4) -> 84.00 | DL4: =IF($BL$34<$BK$34,CR4,DB4) -> 2.00 | DM4: =IF($BL$34<$BK$34,CS4,DC4) -> 80.00 | DN4: =IF($BL$34<$BK$34,CT4,DD4) -> 40.00 | DO4: =IF($BL$34<$BK$34,CU4,DE4) -> 4.00 | DP4: =IF($BL$34<$BK$34,CV4,DF4) -> 2.00 | DQ4: =IF($BL$34<$BK$34,CW4,DG4) -> 80.00 | DR4: =$BL$35+($BJ$29*$BG4) -> 42.00 | DS4: =$BL$29 -> 80.00 | DT4: =$BL$35 -> 40.00 | DU4: =$BL$29+($BL$29*$BG4) -> 84.00 | DV4: =$BG4*$BL$35 -> 2.00 | DW4: =$BL$29 -> 80.00 | DX4: =$BL$35 -> 40.00 | DY4: =$BG4*$BL$29 -> 4.00 | DZ4: =$BJ$29 -> 40.00 | EA4: =$BG4*$BL$29 -> 4.00 | EB4: =$BJ$29+($BJ$29*$BG4) -> 42.00 | EC4: =$BK$35*$BK$29 -> 80.00 | ED4: =$BJ$29 -> 40.00 | EE4: =$EC$3+($BL$29*$BG4) -> 84.00 | EF4: =$BG4*$BK$35 -> 2.00 | EG4: =EC4 -> 80.00 | EH4: =$BJ$29 -> 40.00 | EI4: =$EG4*$BG4 -> 4.00 | EJ4: =$BJ$29*$BG4 -> 2.00 | EK4: =$BL$29 -> 80.00 | EL4: =IF($BL$35<$BK$35,DR4,EB4) -> 42.00 | EM4: =IF($BL$35<$BK$35,DS4,EC4) -> 80.00 | EN4: =IF($BL$35<$BK$35,DT4,ED4) -> 40.00 | EO4: =IF($BL$35<$BK$35,DU4,EE4) -> 84.00 | EP4: =IF($BL$35<$BK$35,DV4,EF4) -> 2.00 | EQ4: =IF($BL$35<$BK$35,DW4,EG4) -> 80.00 | ER4: =IF($BL$35<$BK$35,DX4,EH4) -> 40.00 | ES4: =IF($BL$35<$BK$35,DY4,EI4) -> 4.00 | ET4: =IF($BL$35<$BK$35,DZ4,EJ4) -> 2.00 | EU4: =IF($BL$35<$BK$35,EA4,EK4) -> 80.00 | EX4: 3 | EY4: 2.00 | EZ4: 50.00 | FA4: 200.00 | FB4: 260.00 | FC4: 140.00 | FD4: =1/$FD$2 -> 0.25 | FE4: =FE3+FD4 -> 0.5 | FF4: 100.0 | FG4: 5.3 | FH4: 100.0 | FI4: 5.3 | FJ4: =1/$FJ$2 -> 0.1 | FK4: =FJ4 -> 0.1 | FM4: 3 | FN4: 2.00 | FO4: 50.00 | FP4: 128.00 | FQ4: 200.00 | FR4: 72.00 | FS4: =1/$FS$2 -> 0.25 | FT4: =FT3+FS4 -> 0.5 | FU4: 100.00 | FV4: 3.368421053 | FW4: 64.00 | FX4: 5.263157895 | FY4: =1/$FJ$2 -> 0.1 | FZ4: =FY4 -> 0.1 | GC4: MAX x1 | GD4: ='Cobb-Douglas R3 FPlp'!C8 -> 20.0 | GG4: 0 | GH4: =$GD$3*$GG4^$GD$5*GH$3^$GD$7 -> 0 | GI4: =$GD$3*$GG4^$GD$5*GI$3^$GD$7 -> 0 | GJ4: 0 | GK4: 0 | GL4: 0 | GM4: 0 | GN4: 0 | GO4: 0 | GP4: 0 | GQ4: 0 | GR4: 0 | GS4: 0 | GT4: 0 | GU4: 0 | GV4: 0 | GW4: 0 | GX4: 0 | GY4: =$GD$3*$GG4^$GD$5*GY$3^$GD$7 -> 0 | GZ4: 0 | HA4: 0 | HB4: =$GD$3*$GG4^$GD$5*HB$3^$GD$7 -> 0 | HE4: 3 | HF4: 2.00 | HG4: 33.33 | HH4: 252.69 | HI4: 252.69 | HJ4: 252.69 | HK4: 0.2 | HL4: =HL3+HK4 -> 0.3 | HM4: 100.0 | HN4: 3.4 | HO4: 64.0 | HP4: 5.3 | HQ4: 0.1 | HR4: =HQ4 -> 0.1 | HS4: 100.0 | HV4: 3.4 | HW4: 64.0 | HX4: 5.3 | HY4: 100.0 | HZ4: 3.4 | IA4: 64.0 | IB4: 5.3 | IE4: 2 | IF4: 0.05 | IG4: 1.50 | IH4: =(POWER($IJ$28,1/$IJ$36)/$IM$28)-(($IK$28/$IM$28)*IG4) -> 28.50 | II4: 28.50 | IJ4: 28.50 | IK4: 10.00 | IL4: 1.00 | IM4: 20.00 | IN4: 0.50 | IO4: 10.00 | IP4: 1.00 | IQ4: 20.00 | IR4: 0.50 | IS4: 10.00 | IT4: 1.00 | IU4: 20.00 | IV4: 0.50
A5: 3 | B5: 0.10 | C5: 4.00 | D5: 104.00 | E5: 144.00 | F5: 64.00 | G5: ='Sustitutos FPlp'!$D$11 -> 20.00 | H5: 4.00 | I5: ='Sustitutos FPlp'!$F$11 -> 40.00 | J5: 2.00 | K5: 4.00 | L5: 104.00 | M5: 144.00 | N5: 64.00 | Q5: =$Q$4+Q4 -> 0.1 | R5: 3 | S5: 1.10 | T5: 110.00 | U5: 200.00 | V5: 100.00 | W5: 220.00 | X5: 10.00 | Y5: 200.00 | Z5: 100.00 | AA5: 20.00 | AB5: 100.00 | AC5: 20.00 | AD5: 110.00 | AE5: 200.00 | AF5: 100.00 | AG5: 220.00 | AH5: 10.00 | AI5: 200.00 | AJ5: 100.00 | AK5: 20.00 | AL5: 10.00 | AM5: 200.00 | AN5: 110.00 | AO5: 200.00 | AP5: 100.00 | AQ5: 220.00 | AR5: 10.00 | AS5: 200.00 | AT5: 100.00 | AU5: 20.00 | AV5: 10.00 | AW5: 200.00 | AX5: 165.00 | AY5: 250.00 | AZ5: 150.00 | BA5: 275.00 | BB5: 55.00 | BC5: 150.00 | BD5: 50.00 | BE5: 165.00 | BG5: =$BG$4+BG4 -> 0.1 | BH5: 3 | BI5: 1.10 | BJ5: 44.00 | BK5: 80.00 | BL5: 40.00 | BM5: 88.00 | BN5: 4.00 | BO5: 80.00 | BP5: 40.00 | BQ5: 8.00 | BR5: 40.00 | BS5: 8.00 | BT5: 44.00 | BU5: 80.00 | BV5: 40.00 | BW5: 88.00 | BX5: 4.00 | BY5: 80.00 | BZ5: 40.00 | CA5: 8.00 | CB5: 4.00 | CC5: 80.00 | CD5: 44.00 | CE5: 80.00 | CF5: 40.00 | CG5: 88.00 | CH5: 4.00 | CI5: 80.00 | CJ5: 40.00 | CK5: 8.00 | CL5: 4.00 | CM5: 80.00 | CN5: 44.00 | CO5: 80.00 | CP5: 40.00 | CQ5: 88.00 | CR5: 4.00 | CS5: 80.00 | CT5: 40.00 | CU5: 8.00 | CV5: 40.00 | CW5: 8.00 | CX5: 44.00 | CY5: 80.00 | CZ5: 40.00 | DA5: 88.00 | DB5: 4.00 | DC5: 80.00 | DD5: 40.00 | DE5: 8.00 | DF5: 4.00 | DG5: 80.00 | DH5: 44.00 | DI5: 80.00 | DJ5: 40.00 | DK5: 88.00 | DL5: 4.00 | DM5: 80.00 | DN5: 40.00 | DO5: 8.00 | DP5: 4.00 | DQ5: 80.00 | DR5: 44.00 | DS5: 80.00 | DT5: 40.00 | DU5: 88.00 | DV5: 4.00 | DW5: 80.00 | DX5: 40.00 | DY5: 8.00 | DZ5: 40.00 | EA5: 8.00 | EB5: 44.00 | EC5: 80.00 | ED5: 40.00 | EE5: 88.00 | EF5: 4.00 | EG5: 80.00 | EH5: 40.00 | EI5: 8.00 | EJ5: 4.00 | EK5: 80.00 | EL5: 44.00 | EM5: 80.00 | EN5: 40.00 | EO5: 88.00 | EP5: 4.00 | EQ5: 80.00 | ER5: 40.00 | ES5: 8.00 | ET5: 4.00 | EU5: 80.00 | EX5: 4 | EY5: 3.00 | EZ5: 75.00 | FA5: 133.33 | FB5: 173.33 | FC5: 93.33 | FD5: 0.25 | FE5: =FE4+FD5 -> 0.8 | FF5: 100.0 | FG5: 10.5 | FH5: 100.0 | FI5: 10.5 | FJ5: =1/$FJ$2 -> 0.1 | FK5: =FK4+FJ5 -> 0.1 | FM5: 4 | FN5: 3.00 | FO5: 75.00 | FP5: 85.33 | FQ5: 133.33 | FR5: 48.00 | FS5: 0.25 | FT5: =FT4+FS5 -> 0.75 | FU5: 100.00 | FV5: 6.736842105 | FW5: 64.00 | FX5: 10.52631579 | FY5: =1/$FJ$2 -> 0.1 | FZ5: =FZ4+FY5 -> 0.1 | GC5: a | GD5: ='Cobb-Douglas R3 FPlp'!C9 -> 0.5 | GF5: =HC3 -> 0.05 | GG5: =$GD$6*GF5 -> 1.00 | GH5: 0 | GI5: 1.00 | GJ5: 1.41 | GK5: 1.73 | GL5: 2.00 | GM5: 2.24 | GN5: 2.45 | GO5: 2.65 | GP5: 2.83 | GQ5: 3.00 | GR5: 3.16 | GS5: 3.32 | GT5: 3.46 | GU5: 3.61 | GV5: 3.74 | GW5: 3.87 | GX5: 4.00 | GY5: 4.12 | GZ5: 4.24 | HA5: 4.36 | HB5: 4.47 | HE5: 4 | HF5: 3.00 | HG5: 50.00 | HH5: 152.22 | HI5: 152.22 | HJ5: 152.22 | HK5: 0.2 | HL5: =HL4+HK5 -> 0.5 | HM5: 100.0 | HN5: 6.7 | HO5: 64.0 | HP5: 10.5 | HQ5: 0.1 | HR5: =HR4+HQ5 -> 0.1 | HS5: 100.0 | HV5: 6.7 | HW5: 64.0 | HX5: 10.5 | HY5: 100.0 | HZ5: 6.7 | IA5: 64.0 | IB5: 10.5 | IE5: 3 | IF5: 0.10 | IG5: 3.00 | IH5: 27.00 | II5: 27.00 | IJ5: 27.00 | IK5: 10.00 | IL5: 2.00 | IM5: 20.00 | IN5: 1.00 | IO5: 10.00 | IP5: 2.00 | IQ5: 20.00 | IR5: 1.00 | IS5: 10.00 | IT5: 2.00 | IU5: 20.00 | IV5: 1.00
A6: 4 | B6: 0.15 | C6: 6.00 | D6: 96.00 | E6: 136.00 | F6: 56.00 | G6: ='Sustitutos FPlp'!$D$11 -> 20.00 | H6: 6.00 | I6: ='Sustitutos FPlp'!$F$11 -> 40.00 | J6: 3.00 | K6: 6.00 | L6: 96.00 | M6: 136.00 | N6: 56.00 | Q6: =$Q$4+Q5 -> 0.15 | R6: 4 | S6: 1.15 | T6: 115.00 | U6: 200.00 | V6: 100.00 | W6: 230.00 | X6: 15.00 | Y6: 200.00 | Z6: 100.00 | AA6: 30.00 | AB6: 100.00 | AC6: 30.00 | AD6: 115.00 | AE6: 200.00 | AF6: 100.00 | AG6: 230.00 | AH6: 15.00 | AI6: 200.00 | AJ6: 100.00 | AK6: 30.00 | AL6: 15.00 | AM6: 200.00 | AN6: 115.00 | AO6: 200.00 | AP6: 100.00 | AQ6: 230.00 | AR6: 15.00 | AS6: 200.00 | AT6: 100.00 | AU6: 30.00 | AV6: 15.00 | AW6: 200.00 | AX6: 172.50 | AY6: 250.00 | AZ6: 150.00 | BA6: 287.50 | BB6: 57.50 | BC6: 150.00 | BD6: 50.00 | BE6: 172.50 | BG6: =$BG$4+BG5 -> 0.15 | BH6: 4 | BI6: 1.15 | BJ6: 46.00 | BK6: 80.00 | BL6: 40.00 | BM6: 92.00 | BN6: 6.00 | BO6: 80.00 | BP6: 40.00 | BQ6: 12.00 | BR6: 40.00 | BS6: 12.00 | BT6: 46.00 | BU6: 80.00 | BV6: 40.00 | BW6: 92.00 | BX6: 6.00 | BY6: 80.00 | BZ6: 40.00 | CA6: 12.00 | CB6: 6.00 | CC6: 80.00 | CD6: 46.00 | CE6: 80.00 | CF6: 40.00 | CG6: 92.00 | CH6: 6.00 | CI6: 80.00 | CJ6: 40.00 | CK6: 12.00 | CL6: 6.00 | CM6: 80.00 | CN6: 46.00 | CO6: 80.00 | CP6: 40.00 | CQ6: 92.00 | CR6: 6.00 | CS6: 80.00 | CT6: 40.00 | CU6: 12.00 | CV6: 40.00 | CW6: 12.00 | CX6: 46.00 | CY6: 80.00 | CZ6: 40.00 | DA6: 92.00 | DB6: 6.00 | DC6: 80.00 | DD6: 40.00 | DE6: 12.00 | DF6: 6.00 | DG6: 80.00 | DH6: 46.00 | DI6: 80.00 | DJ6: 40.00 | DK6: 92.00 | DL6: 6.00 | DM6: 80.00 | DN6: 40.00 | DO6: 12.00 | DP6: 6.00 | DQ6: 80.00 | DR6: 46.00 | DS6: 80.00 | DT6: 40.00 | DU6: 92.00 | DV6: 6.00 | DW6: 80.00 | DX6: 40.00 | DY6: 12.00 | DZ6: 40.00 | EA6: 12.00 | EB6: 46.00 | EC6: 80.00 | ED6: 40.00 | EE6: 92.00 | EF6: 6.00 | EG6: 80.00 | EH6: 40.00 | EI6: 12.00 | EJ6: 6.00 | EK6: 80.00 | EL6: 46.00 | EM6: 80.00 | EN6: 40.00 | EO6: 92.00 | EP6: 6.00 | EQ6: 80.00 | ER6: 40.00 | ES6: 12.00 | ET6: 6.00 | EU6: 80.00 | EX6: 5 | EY6: 4.00 | EZ6: 100.00 | FA6: 100.00 | FB6: 130.00 | FC6: 70.00 | FD6: 0.25 | FE6: 1.0 | FF6: 100.0 | FG6: 15.8 | FH6: 100.0 | FI6: 15.8 | FJ6: 0.1 | FK6: =FK5+FJ6 -> 0.2 | FM6: 5 | FN6: 4.00 | FO6: 100.00 | FP6: 64.00 | FQ6: 100.00 | FR6: 36.00 | FS6: 0.25 | FT6: 1 | FU6: 100.00 | FV6: 10.10526316 | FW6: 64.00 | FX6: 15.78947368 | FY6: 0.1 | FZ6: =FZ5+FY6 -> 0.2 | GC6: MAX x2 | GD6: ='Cobb-Douglas R3 FPlp'!C10 -> 20.0 | GF6: =GF5+$HC$3 -> 0.10 | GG6: 2.00 | GH6: 0 | GI6: 1.41 | GJ6: 2.00 | GK6: 2.45 | GL6: 2.83 | GM6: 3.16 | GN6: 3.46 | GO6: 3.74 | GP6: 4.00 | GQ6: 4.24 | GR6: 4.47 | GS6: 4.69 | GT6: 4.90 | GU6: 5.10 | GV6: 5.29 | GW6: 5.48 | GX6: 5.66 | GY6: 5.83 | GZ6: 6.00 | HA6: 6.16 | HB6: 6.32 | HE6: 5 | HF6: 4.00 | HG6: 66.67 | HH6: 106.24 | HI6: 106.24 | HJ6: 106.24 | HK6: 0.2 | HL6: 0.7 | HM6: 100.0 | HN6: 10.1 | HO6: 64.0 | HP6: 15.8 | HQ6: 0.1 | HR6: =HR5+HQ6 -> 0.2 | HS6: 100.0 | HV6: 10.1 | HW6: 64.0 | HX6: 15.8 | HY6: 100.0 | HZ6: 10.1 | IA6: 64.0 | IB6: 15.8 | IE6: 4 | IF6: 0.15 | IG6: 4.50 | IH6: 25.50 | II6: 25.50 | IJ6: 25.50 | IK6: 10.00 | IL6: 3.00 | IM6: 20.00 | IN6: 1.50 | IO6: 10.00 | IP6: 3.00 | IQ6: 20.00 | IR6: 1.50 | IS6: 10.00 | IT6: 3.00 | IU6: 20.00 | IV6: 1.50
A7: 5 | B7: 0.20 | C7: 8.00 | D7: 88.00 | E7: 128.00 | F7: 48.00 | G7: ='Sustitutos FPlp'!$D$11 -> 20.00 | H7: 8.00 | I7: ='Sustitutos FPlp'!$F$11 -> 40.00 | J7: 4.00 | K7: 8.00 | L7: 88.00 | M7: 128.00 | N7: 48.00 | Q7: 0.2 | R7: 5 | S7: 1.20 | T7: 120.00 | U7: 200.00 | V7: 100.00 | W7: 240.00 | X7: 20.00 | Y7: 200.00 | Z7: 100.00 | AA7: 40.00 | AB7: 100.00 | AC7: 40.00 | AD7: 120.00 | AE7: 200.00 | AF7: 100.00 | AG7: 240.00 | AH7: 20.00 | AI7: 200.00 | AJ7: 100.00 | AK7: 40.00 | AL7: 20.00 | AM7: 200.00 | AN7: 120.00 | AO7: 200.00 | AP7: 100.00 | AQ7: 240.00 | AR7: 20.00 | AS7: 200.00 | AT7: 100.00 | AU7: 40.00 | AV7: 20.00 | AW7: 200.00 | AX7: 180.00 | AY7: 250.00 | AZ7: 150.00 | BA7: 300.00 | BB7: 60.00 | BC7: 150.00 | BD7: 50.00 | BE7: 180.00 | BG7: 0.2 | BH7: 5 | BI7: 1.20 | BJ7: 48.00 | BK7: 80.00 | BL7: 40.00 | BM7: 96.00 | BN7: 8.00 | BO7: 80.00 | BP7: 40.00 | BQ7: 16.00 | BR7: 40.00 | BS7: 16.00 | BT7: 48.00 | BU7: 80.00 | BV7: 40.00 | BW7: 96.00 | BX7: 8.00 | BY7: 80.00 | BZ7: 40.00 | CA7: 16.00 | CB7: 8.00 | CC7: 80.00 | CD7: 48.00 | CE7: 80.00 | CF7: 40.00 | CG7: 96.00 | CH7: 8.00 | CI7: 80.00 | CJ7: 40.00 | CK7: 16.00 | CL7: 8.00 | CM7: 80.00 | CN7: 48.00 | CO7: 80.00 | CP7: 40.00 | CQ7: 96.00 | CR7: 8.00 | CS7: 80.00 | CT7: 40.00 | CU7: 16.00 | CV7: 40.00 | CW7: 16.00 | CX7: 48.00 | CY7: 80.00 | CZ7: 40.00 | DA7: 96.00 | DB7: 8.00 | DC7: 80.00 | DD7: 40.00 | DE7: 16.00 | DF7: 8.00 | DG7: 80.00 | DH7: 48.00 | DI7: 80.00 | DJ7: 40.00 | DK7: 96.00 | DL7: 8.00 | DM7: 80.00 | DN7: 40.00 | DO7: 16.00 | DP7: 8.00 | DQ7: 80.00 | DR7: 48.00 | DS7: 80.00 | DT7: 40.00 | DU7: 96.00 | DV7: 8.00 | DW7: 80.00 | DX7: 40.00 | DY7: 16.00 | DZ7: 40.00 | EA7: 16.00 | EB7: 48.00 | EC7: 80.00 | ED7: 40.00 | EE7: 96.00 | EF7: 8.00 | EG7: 80.00 | EH7: 40.00 | EI7: 16.00 | EJ7: 8.00 | EK7: 80.00 | EL7: 48.00 | EM7: 80.00 | EN7: 40.00 | EO7: 96.00 | EP7: 8.00 | EQ7: 80.00 | ER7: 40.00 | ES7: 16.00 | ET7: 8.00 | EU7: 80.00 | EX7: 6 | EY7: 5.00 | EZ7: 125.00 | FA7: 80.00 | FB7: 104.00 | FC7: 56.00 | FD7: 0.25 | FE7: 1.3 | FF7: 100.0 | FG7: 21.1 | FH7: 100.0 | FI7: 21.1 | FJ7: 0.1 | FK7: 0.2 | FM7: 6 | FN7: 5.00 | FO7: 125.00 | FP7: 51.20 | FQ7: 80.00 | FR7: 28.80 | FS7: 0.25 | FT7: 1.25 | FU7: 100.00 | FV7: 13.47368421 | FW7: 64.00 | FX7: 21.05263158 | FY7: 0.1 | FZ7: 0.2 | GC7: b | GD7: ='Cobb-Douglas R3 FPlp'!C11 -> 0.5 | GF7: 0.15 | GG7: 3.00 | GH7: 0 | GI7: 1.73 | GJ7: 2.45 | GK7: 3.00 | GL7: 3.46 | GM7: 3.87 | GN7: 4.24 | GO7: 4.58 | GP7: 4.90 | GQ7: 5.20 | GR7: 5.48 | GS7: 5.74 | GT7: 6.00 | GU7: 6.24 | GV7: 6.48 | GW7: 6.71 | GX7: 6.93 | GY7: 7.14 | GZ7: 7.35 | HA7: 7.55 | HB7: 7.75 | HE7: 6 | HF7: 5.00 | HG7: 83.33 | HH7: 80.38 | HI7: 80.38 | HJ7: 80.38 | HK7: 0.2 | HL7: 0.8 | HM7: 100.0 | HN7: 13.5 | HO7: 64.0 | HP7: 21.1 | HQ7: 0.1 | HR7: 0.2 | HS7: 100.0 | HV7: 13.5 | HW7: 64.0 | HX7: 21.1 | HY7: 100.0 | HZ7: 13.5 | IA7: 64.0 | IB7: 21.1 | IE7: 5 | IF7: 0.20 | IG7: 6.00 | IH7: 24.00 | II7: 24.00 | IJ7: 24.00 | IK7: 10.00 | IL7: 4.00 | IM7: 20.00 | IN7: 2.00 | IO7: 10.00 | IP7: 4.00 | IQ7: 20.00 | IR7: 2.00 | IS7: 10.00 | IT7: 4.00 | IU7: 20.00 | IV7: 2.00
A8: 6 | B8: 0.25 | C8: 10.00 | D8: 80.00 | E8: 120.00 | F8: 40.00 | G8: ='Sustitutos FPlp'!$D$11 -> 20.00 | H8: 10.00 | I8: ='Sustitutos FPlp'!$F$11 -> 40.00 | J8: 5.00 | K8: 10.00 | L8: 80.00 | M8: 120.00 | N8: 40.00 | Q8: 0.25 | R8: 6 | S8: 1.25 | T8: 125.00 | U8: 200.00 | V8: 100.00 | W8: 250.00 | X8: 25.00 | Y8: 200.00 | Z8: 100.00 | AA8: 50.00 | AB8: 100.00 | AC8: 50.00 | AD8: 125.00 | AE8: 200.00 | AF8: 100.00 | AG8: 250.00 | AH8: 25.00 | AI8: 200.00 | AJ8: 100.00 | AK8: 50.00 | AL8: 25.00 | AM8: 200.00 | AN8: 125.00 | AO8: 200.00 | AP8: 100.00 | AQ8: 250.00 | AR8: 25.00 | AS8: 200.00 | AT8: 100.00 | AU8: 50.00 | AV8: 25.00 | AW8: 200.00 | AX8: 187.50 | AY8: 250.00 | AZ8: 150.00 | BA8: 312.50 | BB8: 62.50 | BC8: 150.00 | BD8: 50.00 | BE8: 187.50 | BG8: 0.25 | BH8: 6 | BI8: 1.25 | BJ8: 50.00 | BK8: 80.00 | BL8: 40.00 | BM8: 100.00 | BN8: 10.00 | BO8: 80.00 | BP8: 40.00 | BQ8: 20.00 | BR8: 40.00 | BS8: 20.00 | BT8: 50.00 | BU8: 80.00 | BV8: 40.00 | BW8: 100.00 | BX8: 10.00 | BY8: 80.00 | BZ8: 40.00 | CA8: 20.00 | CB8: 10.00 | CC8: 80.00 | CD8: 50.00 | CE8: 80.00 | CF8: 40.00 | CG8: 100.00 | CH8: 10.00 | CI8: 80.00 | CJ8: 40.00 | CK8: 20.00 | CL8: 10.00 | CM8: 80.00 | CN8: 50.00 | CO8: 80.00 | CP8: 40.00 | CQ8: 100.00 | CR8: 10.00 | CS8: 80.00 | CT8: 40.00 | CU8: 20.00 | CV8: 40.00 | CW8: 20.00 | CX8: 50.00 | CY8: 80.00 | CZ8: 40.00 | DA8: 100.00 | DB8: 10.00 | DC8: 80.00 | DD8: 40.00 | DE8: 20.00 | DF8: 10.00 | DG8: 80.00 | DH8: 50.00 | DI8: 80.00 | DJ8: 40.00 | DK8: 100.00 | DL8: 10.00 | DM8: 80.00 | DN8: 40.00 | DO8: 20.00 | DP8: 10.00 | DQ8: 80.00 | DR8: 50.00 | DS8: 80.00 | DT8: 40.00 | DU8: 100.00 | DV8: 10.00 | DW8: 80.00 | DX8: 40.00 | DY8: 20.00 | DZ8: 40.00 | EA8: 20.00 | EB8: 50.00 | EC8: 80.00 | ED8: 40.00 | EE8: 100.00 | EF8: 10.00 | EG8: 80.00 | EH8: 40.00 | EI8: 20.00 | EJ8: 10.00 | EK8: 80.00 | EL8: 50.00 | EM8: 80.00 | EN8: 40.00 | EO8: 100.00 | EP8: 10.00 | EQ8: 80.00 | ER8: 40.00 | ES8: 20.00 | ET8: 10.00 | EU8: 80.00 | EX8: 7 | EY8: 6.00 | EZ8: 150.00 | FA8: 66.67 | FB8: 86.67 | FC8: 46.67 | FD8: 0.25 | FE8: 1.5 | FF8: 100.0 | FG8: 26.3 | FH8: 100.0 | FI8: 26.3 | FJ8: 0.1 | FK8: 0.3 | FM8: 7 | FN8: 6.00 | FO8: 150.00 | FP8: 42.67 | FQ8: 66.67 | FR8: 24.00 | FS8: 0.25 | FT8: 1.5 | FU8: 100.00 | FV8: 16.84210526 | FW8: 64.00 | FX8: 26.31578947 | FY8: 0.1 | FZ8: 0.3 | GF8: 0.20 | GG8: 4.00 | GH8: 0 | GI8: 2.00 | GJ8: 2.83 | GK8: 3.46 | GL8: 4.00 | GM8: 4.47 | GN8: 4.90 | GO8: 5.29 | GP8: 5.66 | GQ8: 6.00 | GR8: 6.32 | GS8: 6.63 | GT8: 6.93 | GU8: 7.21 | GV8: 7.48 | GW8: 7.75 | GX8: 8.00 | GY8: 8.25 | GZ8: 8.49 | HA8: 8.72 | HB8: 8.94 | HE8: 7 | HF8: 6.00 | HG8: 100.00 | HH8: 64.00 | HI8: 64.00 | HJ8: 64.00 | HK8: 0.2 | HL8: 1.0 | HM8: 100.0 | HN8: 16.8 | HO8: 64.0 | HP8: 26.3 | HQ8: 0.1 | HR8: 0.3 | HS8: 100.0 | HV8: 16.8 | HW8: 64.0 | HX8: 26.3 | HY8: 100.0 | HZ8: 16.8 | IA8: 64.0 | IB8: 26.3 | IE8: 6 | IF8: 0.25 | IG8: 7.50 | IH8: 22.50 | II8: 22.50 | IJ8: 22.50 | IK8: 10.00 | IL8: 5.00 | IM8: 20.00 | IN8: 2.50 | IO8: 10.00 | IP8: 5.00 | IQ8: 20.00 | IR8: 2.50 | IS8: 10.00 | IT8: 5.00 | IU8: 20.00 | IV8: 2.50
A9: 7 | B9: 0.30 | C9: 12.00 | D9: 72.00 | E9: 112.00 | F9: 32.00 | G9: ='Sustitutos FPlp'!$D$11 -> 20.00 | H9: 12.00 | I9: ='Sustitutos FPlp'!$F$11 -> 40.00 | J9: 6.00 | K9: 12.00 | L9: 72.00 | M9: 112.00 | N9: 32.00 | Q9: 0.3 | R9: 7 | S9: 1.30 | T9: 130.00 | U9: 200.00 | V9: 100.00 | W9: 260.00 | X9: 30.00 | Y9: 200.00 | Z9: 100.00 | AA9: 60.00 | AB9: 100.00 | AC9: 60.00 | AD9: 130.00 | AE9: 200.00 | AF9: 100.00 | AG9: 260.00 | AH9: 30.00 | AI9: 200.00 | AJ9: 100.00 | AK9: 60.00 | AL9: 30.00 | AM9: 200.00 | AN9: 130.00 | AO9: 200.00 | AP9: 100.00 | AQ9: 260.00 | AR9: 30.00 | AS9: 200.00 | AT9: 100.00 | AU9: 60.00 | AV9: 30.00 | AW9: 200.00 | AX9: 195.00 | AY9: 250.00 | AZ9: 150.00 | BA9: 325.00 | BB9: 65.00 | BC9: 150.00 | BD9: 50.00 | BE9: 195.00 | BG9: 0.3 | BH9: 7 | BI9: 1.30 | BJ9: 52.00 | BK9: 80.00 | BL9: 40.00 | BM9: 104.00 | BN9: 12.00 | BO9: 80.00 | BP9: 40.00 | BQ9: 24.00 | BR9: 40.00 | BS9: 24.00 | BT9: 52.00 | BU9: 80.00 | BV9: 40.00 | BW9: 104.00 | BX9: 12.00 | BY9: 80.00 | BZ9: 40.00 | CA9: 24.00 | CB9: 12.00 | CC9: 80.00 | CD9: 52.00 | CE9: 80.00 | CF9: 40.00 | CG9: 104.00 | CH9: 12.00 | CI9: 80.00 | CJ9: 40.00 | CK9: 24.00 | CL9: 12.00 | CM9: 80.00 | CN9: 52.00 | CO9: 80.00 | CP9: 40.00 | CQ9: 104.00 | CR9: 12.00 | CS9: 80.00 | CT9: 40.00 | CU9: 24.00 | CV9: 40.00 | CW9: 24.00 | CX9: 52.00 | CY9: 80.00 | CZ9: 40.00 | DA9: 104.00 | DB9: 12.00 | DC9: 80.00 | DD9: 40.00 | DE9: 24.00 | DF9: 12.00 | DG9: 80.00 | DH9: 52.00 | DI9: 80.00 | DJ9: 40.00 | DK9: 104.00 | DL9: 12.00 | DM9: 80.00 | DN9: 40.00 | DO9: 24.00 | DP9: 12.00 | DQ9: 80.00 | DR9: 52.00 | DS9: 80.00 | DT9: 40.00 | DU9: 104.00 | DV9: 12.00 | DW9: 80.00 | DX9: 40.00 | DY9: 24.00 | DZ9: 40.00 | EA9: 24.00 | EB9: 52.00 | EC9: 80.00 | ED9: 40.00 | EE9: 104.00 | EF9: 12.00 | EG9: 80.00 | EH9: 40.00 | EI9: 24.00 | EJ9: 12.00 | EK9: 80.00 | EL9: 52.00 | EM9: 80.00 | EN9: 40.00 | EO9: 104.00 | EP9: 12.00 | EQ9: 80.00 | ER9: 40.00 | ES9: 24.00 | ET9: 12.00 | EU9: 80.00 | EX9: 8 | EY9: 7.00 | EZ9: 175.00 | FA9: 57.14 | FB9: 74.29 | FC9: 40.00 | FD9: 0.25 | FE9: 1.8 | FF9: 100.0 | FG9: 31.6 | FH9: 100.0 | FI9: 31.6 | FJ9: 0.1 | FK9: 0.3 | FM9: 8 | FN9: 7.00 | FO9: 175.00 | FP9: 36.57 | FQ9: 57.14 | FR9: 20.57 | FS9: 0.25 | FT9: 1.75 | FU9: 100.00 | FV9: 20.21052632 | FW9: 64.00 | FX9: 31.57894737 | FY9: 0.1 | FZ9: 0.3 | GF9: 0.25 | GG9: 5.00 | GH9: 0 | GI9: 2.24 | GJ9: 3.16 | GK9: 3.87 | GL9: 4.47 | GM9: 5.00 | GN9: 5.48 | GO9: 5.92 | GP9: 6.32 | GQ9: 6.71 | GR9: 7.07 | GS9: 7.42 | GT9: 7.75 | GU9: 8.06 | GV9: 8.37 | GW9: 8.66 | GX9: 8.94 | GY9: 9.22 | GZ9: 9.49 | HA9: 9.75 | HB9: 10.00 | HE9: 8 | HF9: 7.00 | HG9: 116.67 | HH9: 52.78 | HI9: 52.78 | HJ9: 52.78 | HK9: 0.2 | HL9: 1.2 | HM9: 100.0 | HN9: 20.2 | HO9: 64.0 | HP9: 31.6 | HQ9: 0.1 | HR9: 0.3 | HS9: 100.0 | HV9: 20.2 | HW9: 64.0 | HX9: 31.6 | HY9: 100.0 | HZ9: 20.2 | IA9: 64.0 | IB9: 31.6 | IE9: 7 | IF9: 0.30 | IG9: 9.00 | IH9: 21.00 | II9: 21.00 | IJ9: 21.00 | IK9: 10.00 | IL9: 6.00 | IM9: 20.00 | IN9: 3.00 | IO9: 10.00 | IP9: 6.00 | IQ9: 20.00 | IR9: 3.00 | IS9: 10.00 | IT9: 6.00 | IU9: 20.00 | IV9: 3.00
A10: 8 | B10: 0.35 | C10: 14.00 | D10: 64.00 | E10: 104.00 | F10: 24.00 | G10: ='Sustitutos FPlp'!$D$11 -> 20.00 | H10: 14.00 | I10: ='Sustitutos FPlp'!$F$11 -> 40.00 | J10: 7.00 | K10: 14.00 | L10: 64.00 | M10: 104.00 | N10: 24.00 | Q10: 0.35 | R10: 8 | S10: 1.35 | T10: 135.00 | U10: 200.00 | V10: 100.00 | W10: 270.00 | X10: 35.00 | Y10: 200.00 | Z10: 100.00 | AA10: 70.00 | AB10: 100.00 | AC10: 70.00 | AD10: 135.00 | AE10: 200.00 | AF10: 100.00 | AG10: 270.00 | AH10: 35.00 | AI10: 200.00 | AJ10: 100.00 | AK10: 70.00 | AL10: 35.00 | AM10: 200.00 | AN10: 135.00 | AO10: 200.00 | AP10: 100.00 | AQ10: 270.00 | AR10: 35.00 | AS10: 200.00 | AT10: 100.00 | AU10: 70.00 | AV10: 35.00 | AW10: 200.00 | AX10: 202.50 | AY10: 250.00 | AZ10: 150.00 | BA10: 337.50 | BB10: 67.50 | BC10: 150.00 | BD10: 50.00 | BE10: 202.50 | BG10: 0.35 | BH10: 8 | BI10: 1.35 | BJ10: 54.00 | BK10: 80.00 | BL10: 40.00 | BM10: 108.00 | BN10: 14.00 | BO10: 80.00 | BP10: 40.00 | BQ10: 28.00 | BR10: 40.00 | BS10: 28.00 | BT10: 54.00 | BU10: 80.00 | BV10: 40.00 | BW10: 108.00 | BX10: 14.00 | BY10: 80.00 | BZ10: 40.00 | CA10: 28.00 | CB10: 14.00 | CC10: 80.00 | CD10: 54.00 | CE10: 80.00 | CF10: 40.00 | CG10: 108.00 | CH10: 14.00 | CI10: 80.00 | CJ10: 40.00 | CK10: 28.00 | CL10: 14.00 | CM10: 80.00 | CN10: 54.00 | CO10: 80.00 | CP10: 40.00 | CQ10: 108.00 | CR10: 14.00 | CS10: 80.00 | CT10: 40.00 | CU10: 28.00 | CV10: 40.00 | CW10: 28.00 | CX10: 54.00 | CY10: 80.00 | CZ10: 40.00 | DA10: 108.00 | DB10: 14.00 | DC10: 80.00 | DD10: 40.00 | DE10: 28.00 | DF10: 14.00 | DG10: 80.00 | DH10: 54.00 | DI10: 80.00 | DJ10: 40.00 | DK10: 108.00 | DL10: 14.00 | DM10: 80.00 | DN10: 40.00 | DO10: 28.00 | DP10: 14.00 | DQ10: 80.00 | DR10: 54.00 | DS10: 80.00 | DT10: 40.00 | DU10: 108.00 | DV10: 14.00 | DW10: 80.00 | DX10: 40.00 | DY10: 28.00 | DZ10: 40.00 | EA10: 28.00 | EB10: 54.00 | EC10: 80.00 | ED10: 40.00 | EE10: 108.00 | EF10: 14.00 | EG10: 80.00 | EH10: 40.00 | EI10: 28.00 | EJ10: 14.00 | EK10: 80.00 | EL10: 54.00 | EM10: 80.00 | EN10: 40.00 | EO10: 108.00 | EP10: 14.00 | EQ10: 80.00 | ER10: 40.00 | ES10: 28.00 | ET10: 14.00 | EU10: 80.00 | EX10: 9 | EY10: 8.00 | EZ10: 200.00 | FA10: 50.00 | FB10: 65.00 | FC10: 35.00 | FD10: 0.25 | FE10: 2.0 | FF10: 100.0 | FG10: 36.8 | FH10: 100.0 | FI10: 36.8 | FJ10: 0.1 | FK10: 0.4 | FM10: 9 | FN10: 8.00 | FO10: 200.00 | FP10: 32.00 | FQ10: 50.00 | FR10: 18.00 | FS10: 0.25 | FT10: 2 | FU10: 100.00 | FV10: 23.57894737 | FW10: 64.00 | FX10: 36.84210526 | FY10: 0.1 | FZ10: 0.4 | GC10: PMgq1 | GD10: =(GD5*GD3*((GD6/GD4)^(GD7))) -> 0.50 | GF10: 0.30 | GG10: 6.00 | GH10: 0 | GI10: 2.45 | GJ10: 3.46 | GK10: 4.24 | GL10: 4.90 | GM10: 5.48 | GN10: 6.00 | GO10: 6.48 | GP10: 6.93 | GQ10: 7.35 | GR10: 7.75 | GS10: 8.12 | GT10: 8.49 | GU10: 8.83 | GV10: 9.17 | GW10: 9.49 | GX10: 9.80 | GY10: 10.10 | GZ10: 10.39 | HA10: 10.68 | HB10: 10.95 | HE10: 9 | HF10: 8.00 | HG10: 133.33 | HH10: 44.67 | HI10: 44.67 | HJ10: 44.67 | HK10: 0.2 | HL10: 1.3 | HM10: 100.0 | HN10: 23.6 | HO10: 64.0 | HP10: 36.8 | HQ10: 0.1 | HR10: 0.4 | HS10: 100.0 | HV10: 23.6 | HW10: 64.0 | HX10: 36.8 | HY10: 100.0 | HZ10: 23.6 | IA10: 64.0 | IB10: 36.8 | IE10: 8 | IF10: 0.35 | IG10: 10.50 | IH10: 19.50 | II10: 19.50 | IJ10: 19.50 | IK10: 10.00 | IL10: 7.00 | IM10: 20.00 | IN10: 3.50 | IO10: 10.00 | IP10: 7.00 | IQ10: 20.00 | IR10: 3.50 | IS10: 10.00 | IT10: 7.00 | IU10: 20.00 | IV10: 3.50
A11: 9 | B11: 0.40 | C11: 16.00 | D11: 56.00 | E11: 96.00 | F11: 16.00 | G11: ='Sustitutos FPlp'!$D$11 -> 20.00 | H11: 16.00 | I11: ='Sustitutos FPlp'!$F$11 -> 40.00 | J11: 8.00 | K11: 16.00 | L11: 56.00 | M11: 96.00 | N11: 16.00 | Q11: 0.4 | R11: 9 | S11: 1.40 | T11: 140.00 | U11: 200.00 | V11: 100.00 | W11: 280.00 | X11: 40.00 | Y11: 200.00 | Z11: 100.00 | AA11: 80.00 | AB11: 100.00 | AC11: 80.00 | AD11: 140.00 | AE11: 200.00 | AF11: 100.00 | AG11: 280.00 | AH11: 40.00 | AI11: 200.00 | AJ11: 100.00 | AK11: 80.00 | AL11: 40.00 | AM11: 200.00 | AN11: 140.00 | AO11: 200.00 | AP11: 100.00 | AQ11: 280.00 | AR11: 40.00 | AS11: 200.00 | AT11: 100.00 | AU11: 80.00 | AV11: 40.00 | AW11: 200.00 | AX11: 210.00 | AY11: 250.00 | AZ11: 150.00 | BA11: 350.00 | BB11: 70.00 | BC11: 150.00 | BD11: 50.00 | BE11: 210.00 | BG11: 0.4 | BH11: 9 | BI11: 1.40 | BJ11: 56.00 | BK11: 80.00 | BL11: 40.00 | BM11: 112.00 | BN11: 16.00 | BO11: 80.00 | BP11: 40.00 | BQ11: 32.00 | BR11: 40.00 | BS11: 32.00 | BT11: 56.00 | BU11: 80.00 | BV11: 40.00 | BW11: 112.00 | BX11: 16.00 | BY11: 80.00 | BZ11: 40.00 | CA11: 32.00 | CB11: 16.00 | CC11: 80.00 | CD11: 56.00 | CE11: 80.00 | CF11: 40.00 | CG11: 112.00 | CH11: 16.00 | CI11: 80.00 | CJ11: 40.00 | CK11: 32.00 | CL11: 16.00 | CM11: 80.00 | CN11: 56.00 | CO11: 80.00 | CP11: 40.00 | CQ11: 112.00 | CR11: 16.00 | CS11: 80.00 | CT11: 40.00 | CU11: 32.00 | CV11: 40.00 | CW11: 32.00 | CX11: 56.00 | CY11: 80.00 | CZ11: 40.00 | DA11: 112.00 | DB11: 16.00 | DC11: 80.00 | DD11: 40.00 | DE11: 32.00 | DF11: 16.00 | DG11: 80.00 | DH11: 56.00 | DI11: 80.00 | DJ11: 40.00 | DK11: 112.00 | DL11: 16.00 | DM11: 80.00 | DN11: 40.00 | DO11: 32.00 | DP11: 16.00 | DQ11: 80.00 | DR11: 56.00 | DS11: 80.00 | DT11: 40.00 | DU11: 112.00 | DV11: 16.00 | DW11: 80.00 | DX11: 40.00 | DY11: 32.00 | DZ11: 40.00 | EA11: 32.00 | EB11: 56.00 | EC11: 80.00 | ED11: 40.00 | EE11: 112.00 | EF11: 16.00 | EG11: 80.00 | EH11: 40.00 | EI11: 32.00 | EJ11: 16.00 | EK11: 80.00 | EL11: 56.00 | EM11: 80.00 | EN11: 40.00 | EO11: 112.00 | EP11: 16.00 | EQ11: 80.00 | ER11: 40.00 | ES11: 32.00 | ET11: 16.00 | EU11: 80.00 | EX11: 10 | EY11: 9.00 | EZ11: 225.00 | FA11: 44.44 | FB11: 57.78 | FC11: 31.11 | FD11: 0.25 | FE11: 2.3 | FF11: 100.0 | FG11: 42.1 | FH11: 100.0 | FI11: 42.1 | FJ11: 0.1 | FK11: 0.4 | FM11: 10 | FN11: 9.00 | FO11: 225.00 | FP11: 28.44 | FQ11: 44.44 | FR11: 16.00 | FS11: 0.25 | FT11: 2.25 | FU11: 100.00 | FV11: 26.94736842 | FW11: 64.00 | FX11: 42.10526316 | FY11: 0.1 | FZ11: 0.4 | GC11: PMgq2 | GD11: =(GD7*GD3*((GD4/GD6)^(GD5))) -> 0.50 | GF11: 0.35 | GG11: 7.00 | GH11: 0 | GI11: 2.65 | GJ11: 3.74 | GK11: 4.58 | GL11: 5.29 | GM11: 5.92 | GN11: 6.48 | GO11: 7.00 | GP11: 7.48 | GQ11: 7.94 | GR11: 8.37 | GS11: 8.77 | GT11: 9.17 | GU11: 9.54 | GV11: 9.90 | GW11: 10.25 | GX11: 10.58 | GY11: 10.91 | GZ11: 11.22 | HA11: 11.53 | HB11: 11.83 | HE11: 10 | HF11: 9.00 | HG11: 150.00 | HH11: 38.55 | HI11: 38.55 | HJ11: 38.55 | HK11: 0.2 | HL11: 1.5 | HM11: 100.0 | HN11: 26.9 | HO11: 64.0 | HP11: 42.1 | HQ11: 0.1 | HR11: 0.4 | HS11: 100.0 | HV11: 26.9 | HW11: 64.0 | HX11: 42.1 | HY11: 100.0 | HZ11: 26.9 | IA11: 64.0 | IB11: 42.1 | IE11: 9 | IF11: 0.40 | IG11: 12.00 | IH11: 18.00 | II11: 18.00 | IJ11: 18.00 | IK11: 10.00 | IL11: 8.00 | IM11: 20.00 | IN11: 4.00 | IO11: 10.00 | IP11: 8.00 | IQ11: 20.00 | IR11: 4.00 | IS11: 10.00 | IT11: 8.00 | IU11: 20.00 | IV11: 4.00
A12: 10 | B12: 0.45 | C12: 18.00 | D12: 48.00 | E12: 88.00 | F12: 8.00 | G12: ='Sustitutos FPlp'!$D$11 -> 20.00 | H12: 18.00 | I12: ='Sustitutos FPlp'!$F$11 -> 40.00 | J12: 9.00 | K12: 18.00 | L12: 48.00 | M12: 88.00 | N12: 8.00 | Q12: 0.45 | R12: 10 | S12: 1.45 | T12: 145.00 | U12: 200.00 | V12: 100.00 | W12: 290.00 | X12: 45.00 | Y12: 200.00 | Z12: 100.00 | AA12: 90.00 | AB12: 100.00 | AC12: 90.00 | AD12: 145.00 | AE12: 200.00 | AF12: 100.00 | AG12: 290.00 | AH12: 45.00 | AI12: 200.00 | AJ12: 100.00 | AK12: 90.00 | AL12: 45.00 | AM12: 200.00 | AN12: 145.00 | AO12: 200.00 | AP12: 100.00 | AQ12: 290.00 | AR12: 45.00 | AS12: 200.00 | AT12: 100.00 | AU12: 90.00 | AV12: 45.00 | AW12: 200.00 | AX12: 217.50 | AY12: 250.00 | AZ12: 150.00 | BA12: 362.50 | BB12: 72.50 | BC12: 150.00 | BD12: 50.00 | BE12: 217.50 | BG12: 0.45 | BH12: 10 | BI12: 1.45 | BJ12: 58.00 | BK12: 80.00 | BL12: 40.00 | BM12: 116.00 | BN12: 18.00 | BO12: 80.00 | BP12: 40.00 | BQ12: 36.00 | BR12: 40.00 | BS12: 36.00 | BT12: 58.00 | BU12: 80.00 | BV12: 40.00 | BW12: 116.00 | BX12: 18.00 | BY12: 80.00 | BZ12: 40.00 | CA12: 36.00 | CB12: 18.00 | CC12: 80.00 | CD12: 58.00 | CE12: 80.00 | CF12: 40.00 | CG12: 116.00 | CH12: 18.00 | CI12: 80.00 | CJ12: 40.00 | CK12: 36.00 | CL12: 18.00 | CM12: 80.00 | CN12: 58.00 | CO12: 80.00 | CP12: 40.00 | CQ12: 116.00 | CR12: 18.00 | CS12: 80.00 | CT12: 40.00 | CU12: 36.00 | CV12: 40.00 | CW12: 36.00 | CX12: 58.00 | CY12: 80.00 | CZ12: 40.00 | DA12: 116.00 | DB12: 18.00 | DC12: 80.00 | DD12: 40.00 | DE12: 36.00 | DF12: 18.00 | DG12: 80.00 | DH12: 58.00 | DI12: 80.00 | DJ12: 40.00 | DK12: 116.00 | DL12: 18.00 | DM12: 80.00 | DN12: 40.00 | DO12: 36.00 | DP12: 18.00 | DQ12: 80.00 | DR12: 58.00 | DS12: 80.00 | DT12: 40.00 | DU12: 116.00 | DV12: 18.00 | DW12: 80.00 | DX12: 40.00 | DY12: 36.00 | DZ12: 40.00 | EA12: 36.00 | EB12: 58.00 | EC12: 80.00 | ED12: 40.00 | EE12: 116.00 | EF12: 18.00 | EG12: 80.00 | EH12: 40.00 | EI12: 36.00 | EJ12: 18.00 | EK12: 80.00 | EL12: 58.00 | EM12: 80.00 | EN12: 40.00 | EO12: 116.00 | EP12: 18.00 | EQ12: 80.00 | ER12: 40.00 | ES12: 36.00 | ET12: 18.00 | EU12: 80.00 | EX12: 11 | EY12: 10.00 | EZ12: 250.00 | FA12: 40.00 | FB12: 52.00 | FC12: 28.00 | FD12: 0.25 | FE12: 2.5 | FF12: 100.0 | FG12: 47.4 | FH12: 100.0 | FI12: 47.4 | FJ12: 0.1 | FK12: 0.5 | FM12: 11 | FN12: 10.00 | FO12: 250.00 | FP12: 25.60 | FQ12: 40.00 | FR12: 14.40 | FS12: 0.25 | FT12: 2.5 | FU12: 100.00 | FV12: 30.31578947 | FW12: 64.00 | FX12: 47.36842105 | FY12: 0.1 | FZ12: 0.5 | GC12: RTS | GD12: =GD10/GD11*-1 -> -1.00 | GF12: 0.40 | GG12: 8.00 | GH12: 0 | GI12: 2.83 | GJ12: 4.00 | GK12: 4.90 | GL12: 5.66 | GM12: 6.32 | GN12: 6.93 | GO12: 7.48 | GP12: 8.00 | GQ12: 8.49 | GR12: 8.94 | GS12: 9.38 | GT12: 9.80 | GU12: 10.20 | GV12: 10.58 | GW12: 10.95 | GX12: 11.31 | GY12: 11.66 | GZ12: 12.00 | HA12: 12.33 | HB12: 12.65 | HE12: 11 | HF12: 10.00 | HG12: 166.67 | HH12: 33.80 | HI12: 33.80 | HJ12: 33.80 | HK12: 0.2 | HL12: 1.7 | HM12: 100.0 | HN12: 30.3 | HO12: 64.0 | HP12: 47.4 | HQ12: 0.1 | HR12: 0.5 | HS12: 100.0 | HV12: 30.3 | HW12: 64.0 | HX12: 47.4 | HY12: 100.0 | HZ12: 30.3 | IA12: 64.0 | IB12: 47.4 | IE12: 10 | IF12: 0.45 | IG12: 13.50 | IH12: 16.50 | II12: 16.50 | IJ12: 16.50 | IK12: 10.00 | IL12: 9.00 | IM12: 20.00 | IN12: 4.50 | IO12: 10.00 | IP12: 9.00 | IQ12: 20.00 | IR12: 4.50 | IS12: 10.00 | IT12: 9.00 | IU12: 20.00 | IV12: 4.50
A13: 11 | B13: 0.50 | C13: 20.00 | D13: 40.00 | E13: 80.00 | F13: 0 | G13: ='Sustitutos FPlp'!$D$11 -> 20.00 | H13: 20.00 | I13: ='Sustitutos FPlp'!$F$11 -> 40.00 | J13: 10.00 | K13: 20.00 | L13: 40.00 | M13: 80.00 | N13: 0 | Q13: 0.5 | R13: 11 | S13: 1.50 | T13: 150.00 | U13: 200.00 | V13: 100.00 | W13: 300.00 | X13: 50.00 | Y13: 200.00 | Z13: 100.00 | AA13: 100.00 | AB13: 100.00 | AC13: 100.00 | AD13: 150.00 | AE13: 200.00 | AF13: 100.00 | AG13: 300.00 | AH13: 50.00 | AI13: 200.00 | AJ13: 100.00 | AK13: 100.00 | AL13: 50.00 | AM13: 200.00 | AN13: 150.00 | AO13: 200.00 | AP13: 100.00 | AQ13: 300.00 | AR13: 50.00 | AS13: 200.00 | AT13: 100.00 | AU13: 100.00 | AV13: 50.00 | AW13: 200.00 | AX13: 225.00 | AY13: 250.00 | AZ13: 150.00 | BA13: 375.00 | BB13: 75.00 | BC13: 150.00 | BD13: 50.00 | BE13: 225.00 | BG13: 0.5 | BH13: 11 | BI13: 1.50 | BJ13: 60.00 | BK13: 80.00 | BL13: 40.00 | BM13: 120.00 | BN13: 20.00 | BO13: 80.00 | BP13: 40.00 | BQ13: 40.00 | BR13: 40.00 | BS13: 40.00 | BT13: 60.00 | BU13: 80.00 | BV13: 40.00 | BW13: 120.00 | BX13: 20.00 | BY13: 80.00 | BZ13: 40.00 | CA13: 40.00 | CB13: 20.00 | CC13: 80.00 | CD13: 60.00 | CE13: 80.00 | CF13: 40.00 | CG13: 120.00 | CH13: 20.00 | CI13: 80.00 | CJ13: 40.00 | CK13: 40.00 | CL13: 20.00 | CM13: 80.00 | CN13: 60.00 | CO13: 80.00 | CP13: 40.00 | CQ13: 120.00 | CR13: 20.00 | CS13: 80.00 | CT13: 40.00 | CU13: 40.00 | CV13: 40.00 | CW13: 40.00 | CX13: 60.00 | CY13: 80.00 | CZ13: 40.00 | DA13: 120.00 | DB13: 20.00 | DC13: 80.00 | DD13: 40.00 | DE13: 40.00 | DF13: 20.00 | DG13: 80.00 | DH13: 60.00 | DI13: 80.00 | DJ13: 40.00 | DK13: 120.00 | DL13: 20.00 | DM13: 80.00 | DN13: 40.00 | DO13: 40.00 | DP13: 20.00 | DQ13: 80.00 | DR13: 60.00 | DS13: 80.00 | DT13: 40.00 | DU13: 120.00 | DV13: 20.00 | DW13: 80.00 | DX13: 40.00 | DY13: 40.00 | DZ13: 40.00 | EA13: 40.00 | EB13: 60.00 | EC13: 80.00 | ED13: 40.00 | EE13: 120.00 | EF13: 20.00 | EG13: 80.00 | EH13: 40.00 | EI13: 40.00 | EJ13: 20.00 | EK13: 80.00 | EL13: 60.00 | EM13: 80.00 | EN13: 40.00 | EO13: 120.00 | EP13: 20.00 | EQ13: 80.00 | ER13: 40.00 | ES13: 40.00 | ET13: 20.00 | EU13: 80.00 | EX13: 12 | EY13: 11.00 | EZ13: 275.00 | FA13: 36.36 | FB13: 47.27 | FC13: 25.45 | FD13: 0.25 | FE13: 2.8 | FF13: 100.0 | FG13: 52.6 | FH13: 100.0 | FI13: 52.6 | FJ13: 0.1 | FK13: 0.5 | FM13: 12 | FN13: 11.00 | FO13: 275.00 | FP13: 23.27 | FQ13: 36.36 | FR13: 13.09 | FS13: 0.25 | FT13: 2.75 | FU13: 100.00 | FV13: 33.68421053 | FW13: 64.00 | FX13: 52.63157895 | FY13: 0.1 | FZ13: 0.5 | GF13: 0.45 | GG13: 9.00 | GH13: 0 | GI13: 3.00 | GJ13: 4.24 | GK13: 5.20 | GL13: 6.00 | GM13: 6.71 | GN13: 7.35 | GO13: 7.94 | GP13: 8.49 | GQ13: 9.00 | GR13: 9.49 | GS13: 9.95 | GT13: 10.39 | GU13: 10.82 | GV13: 11.22 | GW13: 11.62 | GX13: 12.00 | GY13: 12.37 | GZ13: 12.73 | HA13: 13.08 | HB13: 13.42 | HE13: 12 | HF13: 11.00 | HG13: 183.33 | HH13: 30.00 | HI13: 30.00 | HJ13: 30.00 | HK13: 0.2 | HL13: 1.8 | HM13: 100.0 | HN13: 33.7 | HO13: 64.0 | HP13: 52.6 | HQ13: 0.1 | HR13: 0.5 | HS13: 100.0 | HV13: 33.7 | HW13: 64.0 | HX13: 52.6 | HY13: 100.0 | HZ13: 33.7 | IA13: 64.0 | IB13: 52.6 | IE13: 11 | IF13: 0.50 | IG13: 15.00 | IH13: 15.00 | II13: 15.00 | IJ13: 15.00 | IK13: 10.00 | IL13: 10.00 | IM13: 20.00 | IN13: 5.00 | IO13: 10.00 | IP13: 10.00 | IQ13: 20.00 | IR13: 5.00 | IS13: 10.00 | IT13: 10.00 | IU13: 20.00 | IV13: 5.00
A14: 12 | B14: 0.55 | C14: 22.00 | D14: 32.00 | E14: 72.00 | F14: (8.00) | G14: ='Sustitutos FPlp'!$D$11 -> 20.00 | H14: 22.00 | I14: ='Sustitutos FPlp'!$F$11 -> 40.00 | J14: 11.00 | K14: 22.00 | L14: 32.00 | M14: 72.00 | N14: (8.00) | Q14: 0.55 | R14: 12 | S14: 1.55 | T14: 155.00 | U14: 200.00 | V14: 100.00 | W14: 310.00 | X14: 55.00 | Y14: 200.00 | Z14: 100.00 | AA14: 110.00 | AB14: 100.00 | AC14: 110.00 | AD14: 155.00 | AE14: 200.00 | AF14: 100.00 | AG14: 310.00 | AH14: 55.00 | AI14: 200.00 | AJ14: 100.00 | AK14: 110.00 | AL14: 55.00 | AM14: 200.00 | AN14: 155.00 | AO14: 200.00 | AP14: 100.00 | AQ14: 310.00 | AR14: 55.00 | AS14: 200.00 | AT14: 100.00 | AU14: 110.00 | AV14: 55.00 | AW14: 200.00 | AX14: 232.50 | AY14: 250.00 | AZ14: 150.00 | BA14: 387.50 | BB14: 77.50 | BC14: 150.00 | BD14: 50.00 | BE14: 232.50 | BG14: 0.55 | BH14: 12 | BI14: 1.55 | BJ14: 62.00 | BK14: 80.00 | BL14: 40.00 | BM14: 124.00 | BN14: 22.00 | BO14: 80.00 | BP14: 40.00 | BQ14: 44.00 | BR14: 40.00 | BS14: 44.00 | BT14: 62.00 | BU14: 80.00 | BV14: 40.00 | BW14: 124.00 | BX14: 22.00 | BY14: 80.00 | BZ14: 40.00 | CA14: 44.00 | CB14: 22.00 | CC14: 80.00 | CD14: 62.00 | CE14: 80.00 | CF14: 40.00 | CG14: 124.00 | CH14: 22.00 | CI14: 80.00 | CJ14: 40.00 | CK14: 44.00 | CL14: 22.00 | CM14: 80.00 | CN14: 62.00 | CO14: 80.00 | CP14: 40.00 | CQ14: 124.00 | CR14: 22.00 | CS14: 80.00 | CT14: 40.00 | CU14: 44.00 | CV14: 40.00 | CW14: 44.00 | CX14: 62.00 | CY14: 80.00 | CZ14: 40.00 | DA14: 124.00 | DB14: 22.00 | DC14: 80.00 | DD14: 40.00 | DE14: 44.00 | DF14: 22.00 | DG14: 80.00 | DH14: 62.00 | DI14: 80.00 | DJ14: 40.00 | DK14: 124.00 | DL14: 22.00 | DM14: 80.00 | DN14: 40.00 | DO14: 44.00 | DP14: 22.00 | DQ14: 80.00 | DR14: 62.00 | DS14: 80.00 | DT14: 40.00 | DU14: 124.00 | DV14: 22.00 | DW14: 80.00 | DX14: 40.00 | DY14: 44.00 | DZ14: 40.00 | EA14: 44.00 | EB14: 62.00 | EC14: 80.00 | ED14: 40.00 | EE14: 124.00 | EF14: 22.00 | EG14: 80.00 | EH14: 40.00 | EI14: 44.00 | EJ14: 22.00 | EK14: 80.00 | EL14: 62.00 | EM14: 80.00 | EN14: 40.00 | EO14: 124.00 | EP14: 22.00 | EQ14: 80.00 | ER14: 40.00 | ES14: 44.00 | ET14: 22.00 | EU14: 80.00 | EX14: 13 | EY14: 12.00 | EZ14: 300.00 | FA14: 33.33 | FB14: 43.33 | FC14: 23.33 | FD14: 0.25 | FE14: 3.0 | FF14: 100.0 | FG14: 57.9 | FH14: 100.0 | FI14: 57.9 | FJ14: 0.1 | FK14: 0.6 | FM14: 13 | FN14: 12.00 | FO14: 300.00 | FP14: 21.33 | FQ14: 33.33 | FR14: 12.00 | FS14: 0.25 | FT14: 3 | FU14: 100.00 | FV14: 37.05263158 | FW14: 64.00 | FX14: 57.89473684 | FY14: 0.1 | FZ14: 0.6 | GF14: 0.50 | GG14: 10.00 | GH14: 0 | GI14: 3.16 | GJ14: 4.47 | GK14: 5.48 | GL14: 6.32 | GM14: 7.07 | GN14: 7.75 | GO14: 8.37 | GP14: 8.94 | GQ14: 9.49 | GR14: 10.00 | GS14: 10.49 | GT14: 10.95 | GU14: 11.40 | GV14: 11.83 | GW14: 12.25 | GX14: 12.65 | GY14: 13.04 | GZ14: 13.42 | HA14: 13.78 | HB14: 14.14 | HE14: 13 | HF14: 12.00 | HG14: 200.00 | HH14: 26.91 | HI14: 26.91 | HJ14: 26.91 | HK14: 0.2 | HL14: 2.0 | HM14: 100.0 | HN14: 37.1 | HO14: 64.0 | HP14: 57.9 | HQ14: 0.1 | HR14: 0.6 | HS14: 100.0 | HV14: 37.1 | HW14: 64.0 | HX14: 57.9 | HY14: 100.0 | HZ14: 37.1 | IA14: 64.0 | IB14: 57.9 | IE14: 12 | IF14: 0.55 | IG14: 16.50 | IH14: 13.50 | II14: 13.50 | IJ14: 13.50 | IK14: 10.00 | IL14: 11.00 | IM14: 20.00 | IN14: 5.50 | IO14: 10.00 | IP14: 11.00 | IQ14: 20.00 | IR14: 5.50 | IS14: 10.00 | IT14: 11.00 | IU14: 20.00 | IV14: 5.50
A15: 13 | B15: 0.60 | C15: 24.00 | D15: 24.00 | E15: 64.00 | F15: (16.00) | G15: ='Sustitutos FPlp'!$D$11 -> 20.00 | H15: 24.00 | I15: ='Sustitutos FPlp'!$F$11 -> 40.00 | J15: 12.00 | K15: 24.00 | L15: 24.00 | M15: 64.00 | N15: (16.00) | Q15: 0.6 | R15: 13 | S15: 1.60 | T15: 160.00 | U15: 200.00 | V15: 100.00 | W15: 320.00 | X15: 60.00 | Y15: 200.00 | Z15: 100.00 | AA15: 120.00 | AB15: 100.00 | AC15: 120.00 | AD15: 160.00 | AE15: 200.00 | AF15: 100.00 | AG15: 320.00 | AH15: 60.00 | AI15: 200.00 | AJ15: 100.00 | AK15: 120.00 | AL15: 60.00 | AM15: 200.00 | AN15: 160.00 | AO15: 200.00 | AP15: 100.00 | AQ15: 320.00 | AR15: 60.00 | AS15: 200.00 | AT15: 100.00 | AU15: 120.00 | AV15: 60.00 | AW15: 200.00 | AX15: 240.00 | AY15: 250.00 | AZ15: 150.00 | BA15: 400.00 | BB15: 80.00 | BC15: 150.00 | BD15: 50.00 | BE15: 240.00 | BG15: 0.6 | BH15: 13 | BI15: 1.60 | BJ15: 64.00 | BK15: 80.00 | BL15: 40.00 | BM15: 128.00 | BN15: 24.00 | BO15: 80.00 | BP15: 40.00 | BQ15: 48.00 | BR15: 40.00 | BS15: 48.00 | BT15: 64.00 | BU15: 80.00 | BV15: 40.00 | BW15: 128.00 | BX15: 24.00 | BY15: 80.00 | BZ15: 40.00 | CA15: 48.00 | CB15: 24.00 | CC15: 80.00 | CD15: 64.00 | CE15: 80.00 | CF15: 40.00 | CG15: 128.00 | CH15: 24.00 | CI15: 80.00 | CJ15: 40.00 | CK15: 48.00 | CL15: 24.00 | CM15: 80.00 | CN15: 64.00 | CO15: 80.00 | CP15: 40.00 | CQ15: 128.00 | CR15: 24.00 | CS15: 80.00 | CT15: 40.00 | CU15: 48.00 | CV15: 40.00 | CW15: 48.00 | CX15: 64.00 | CY15: 80.00 | CZ15: 40.00 | DA15: 128.00 | DB15: 24.00 | DC15: 80.00 | DD15: 40.00 | DE15: 48.00 | DF15: 24.00 | DG15: 80.00 | DH15: 64.00 | DI15: 80.00 | DJ15: 40.00 | DK15: 128.00 | DL15: 24.00 | DM15: 80.00 | DN15: 40.00 | DO15: 48.00 | DP15: 24.00 | DQ15: 80.00 | DR15: 64.00 | DS15: 80.00 | DT15: 40.00 | DU15: 128.00 | DV15: 24.00 | DW15: 80.00 | DX15: 40.00 | DY15: 48.00 | DZ15: 40.00 | EA15: 48.00 | EB15: 64.00 | EC15: 80.00 | ED15: 40.00 | EE15: 128.00 | EF15: 24.00 | EG15: 80.00 | EH15: 40.00 | EI15: 48.00 | EJ15: 24.00 | EK15: 80.00 | EL15: 64.00 | EM15: 80.00 | EN15: 40.00 | EO15: 128.00 | EP15: 24.00 | EQ15: 80.00 | ER15: 40.00 | ES15: 48.00 | ET15: 24.00 | EU15: 80.00 | EX15: 14 | EY15: 13.00 | EZ15: 325.00 | FA15: 30.77 | FB15: 40.00 | FC15: 21.54 | FD15: 0.25 | FE15: 3.3 | FF15: 100.0 | FG15: 63.2 | FH15: 100.0 | FI15: 63.2 | FJ15: 0.1 | FK15: 0.6 | FM15: 14 | FN15: 13.00 | FO15: 325.00 | FP15: 19.69 | FQ15: 30.77 | FR15: 11.08 | FS15: 0.25 | FT15: 3.25 | FU15: 100.00 | FV15: 40.42105263 | FW15: 64.00 | FX15: 63.15789474 | FY15: 0.1 | FZ15: 0.6 | GF15: 0.55 | GG15: 11.00 | GH15: 0 | GI15: 3.32 | GJ15: 4.69 | GK15: 5.74 | GL15: 6.63 | GM15: 7.42 | GN15: 8.12 | GO15: 8.77 | GP15: 9.38 | GQ15: 9.95 | GR15: 10.49 | GS15: 11.00 | GT15: 11.49 | GU15: 11.96 | GV15: 12.41 | GW15: 12.85 | GX15: 13.27 | GY15: 13.67 | GZ15: 14.07 | HA15: 14.46 | HB15: 14.83 | HE15: 14 | HF15: 13.00 | HG15: 216.67 | HH15: 24.35 | HI15: 24.35 | HJ15: 24.35 | HK15: 0.2 | HL15: 2.2 | HM15: 100.0 | HN15: 40.4 | HO15: 64.0 | HP15: 63.2 | HQ15: 0.1 | HR15: 0.6 | HS15: 100.0 | HV15: 40.4 | HW15: 64.0 | HX15: 63.2 | HY15: 100.0 | HZ15: 40.4 | IA15: 64.0 | IB15: 63.2 | IE15: 13 | IF15: 0.60 | IG15: 18.00 | IH15: 12.00 | II15: 12.00 | IJ15: 12.00 | IK15: 10.00 | IL15: 12.00 | IM15: 20.00 | IN15: 6.00 | IO15: 10.00 | IP15: 12.00 | IQ15: 20.00 | IR15: 6.00 | IS15: 10.00 | IT15: 12.00 | IU15: 20.00 | IV15: 6.00
A16: 14 | B16: 0.65 | C16: 26.00 | D16: 16.00 | E16: 56.00 | F16: (24.00) | G16: ='Sustitutos FPlp'!$D$11 -> 20.00 | H16: 26.00 | I16: ='Sustitutos FPlp'!$F$11 -> 40.00 | J16: 13.00 | K16: 26.00 | L16: 16.00 | M16: 56.00 | N16: (24.00) | Q16: 0.65 | R16: 14 | S16: 1.65 | T16: 165.00 | U16: 200.00 | V16: 100.00 | W16: 330.00 | X16: 65.00 | Y16: 200.00 | Z16: 100.00 | AA16: 130.00 | AB16: 100.00 | AC16: 130.00 | AD16: 165.00 | AE16: 200.00 | AF16: 100.00 | AG16: 330.00 | AH16: 65.00 | AI16: 200.00 | AJ16: 100.00 | AK16: 130.00 | AL16: 65.00 | AM16: 200.00 | AN16: 165.00 | AO16: 200.00 | AP16: 100.00 | AQ16: 330.00 | AR16: 65.00 | AS16: 200.00 | AT16: 100.00 | AU16: 130.00 | AV16: 65.00 | AW16: 200.00 | AX16: 247.50 | AY16: 250.00 | AZ16: 150.00 | BA16: 412.50 | BB16: 82.50 | BC16: 150.00 | BD16: 50.00 | BE16: 247.50 | BG16: 0.65 | BH16: 14 | BI16: 1.65 | BJ16: 66.00 | BK16: 80.00 | BL16: 40.00 | BM16: 132.00 | BN16: 26.00 | BO16: 80.00 | BP16: 40.00 | BQ16: 52.00 | BR16: 40.00 | BS16: 52.00 | BT16: 66.00 | BU16: 80.00 | BV16: 40.00 | BW16: 132.00 | BX16: 26.00 | BY16: 80.00 | BZ16: 40.00 | CA16: 52.00 | CB16: 26.00 | CC16: 80.00 | CD16: 66.00 | CE16: 80.00 | CF16: 40.00 | CG16: 132.00 | CH16: 26.00 | CI16: 80.00 | CJ16: 40.00 | CK16: 52.00 | CL16: 26.00 | CM16: 80.00 | CN16: 66.00 | CO16: 80.00 | CP16: 40.00 | CQ16: 132.00 | CR16: 26.00 | CS16: 80.00 | CT16: 40.00 | CU16: 52.00 | CV16: 40.00 | CW16: 52.00 | CX16: 66.00 | CY16: 80.00 | CZ16: 40.00 | DA16: 132.00 | DB16: 26.00 | DC16: 80.00 | DD16: 40.00 | DE16: 52.00 | DF16: 26.00 | DG16: 80.00 | DH16: 66.00 | DI16: 80.00 | DJ16: 40.00 | DK16: 132.00 | DL16: 26.00 | DM16: 80.00 | DN16: 40.00 | DO16: 52.00 | DP16: 26.00 | DQ16: 80.00 | DR16: 66.00 | DS16: 80.00 | DT16: 40.00 | DU16: 132.00 | DV16: 26.00 | DW16: 80.00 | DX16: 40.00 | DY16: 52.00 | DZ16: 40.00 | EA16: 52.00 | EB16: 66.00 | EC16: 80.00 | ED16: 40.00 | EE16: 132.00 | EF16: 26.00 | EG16: 80.00 | EH16: 40.00 | EI16: 52.00 | EJ16: 26.00 | EK16: 80.00 | EL16: 66.00 | EM16: 80.00 | EN16: 40.00 | EO16: 132.00 | EP16: 26.00 | EQ16: 80.00 | ER16: 40.00 | ES16: 52.00 | ET16: 26.00 | EU16: 80.00 | EX16: 15 | EY16: 14.00 | EZ16: 350.00 | FA16: 28.57 | FB16: 37.14 | FC16: 20.00 | FD16: 0.25 | FE16: 3.5 | FF16: 100.0 | FG16: 68.4 | FH16: 100.0 | FI16: 68.4 | FJ16: 0.1 | FK16: 0.7 | FM16: 15 | FN16: 14.00 | FO16: 350.00 | FP16: 18.29 | FQ16: 28.57 | FR16: 10.29 | FS16: 0.25 | FT16: 3.5 | FU16: 100.00 | FV16: 43.78947368 | FW16: 64.00 | FX16: 68.42105263 | FY16: 0.1 | FZ16: 0.7 | GF16: 0.60 | GG16: 12.00 | GH16: 0 | GI16: 3.46 | GJ16: 4.90 | GK16: 6.00 | GL16: 6.93 | GM16: 7.75 | GN16: 8.49 | GO16: 9.17 | GP16: 9.80 | GQ16: 10.39 | GR16: 10.95 | GS16: 11.49 | GT16: 12.00 | GU16: 12.49 | GV16: 12.96 | GW16: 13.42 | GX16: 13.86 | GY16: 14.28 | GZ16: 14.70 | HA16: 15.10 | HB16: 15.49 | HE16: 15 | HF16: 14.00 | HG16: 233.33 | HH16: 22.19 | HI16: 22.19 | HJ16: 22.19 | HK16: 0.2 | HL16: 2.3 | HM16: 100.0 | HN16: 43.8 | HO16: 64.0 | HP16: 68.4 | HQ16: 0.1 | HR16: 0.7 | HS16: 100.0 | HV16: 43.8 | HW16: 64.0 | HX16: 68.4 | HY16: 100.0 | HZ16: 43.8 | IA16: 64.0 | IB16: 68.4 | IE16: 14 | IF16: 0.65 | IG16: 19.50 | IH16: 10.50 | II16: 10.50 | IJ16: 10.50 | IK16: 10.00 | IL16: 13.00 | IM16: 20.00 | IN16: 6.50 | IO16: 10.00 | IP16: 13.00 | IQ16: 20.00 | IR16: 6.50 | IS16: 10.00 | IT16: 13.00 | IU16: 20.00 | IV16: 6.50
A17: 15 | B17: 0.70 | C17: 28.00 | D17: 8.00 | E17: 48.00 | F17: (32.00) | G17: ='Sustitutos FPlp'!$D$11 -> 20.00 | H17: 28.00 | I17: ='Sustitutos FPlp'!$F$11 -> 40.00 | J17: 14.00 | K17: 28.00 | L17: 8.00 | M17: 48.00 | N17: (32.00) | Q17: 0.7 | R17: 15 | S17: 1.70 | T17: 170.00 | U17: 200.00 | V17: 100.00 | W17: 340.00 | X17: 70.00 | Y17: 200.00 | Z17: 100.00 | AA17: 140.00 | AB17: 100.00 | AC17: 140.00 | AD17: 170.00 | AE17: 200.00 | AF17: 100.00 | AG17: 340.00 | AH17: 70.00 | AI17: 200.00 | AJ17: 100.00 | AK17: 140.00 | AL17: 70.00 | AM17: 200.00 | AN17: 170.00 | AO17: 200.00 | AP17: 100.00 | AQ17: 340.00 | AR17: 70.00 | AS17: 200.00 | AT17: 100.00 | AU17: 140.00 | AV17: 70.00 | AW17: 200.00 | AX17: 255.00 | AY17: 250.00 | AZ17: 150.00 | BA17: 425.00 | BB17: 85.00 | BC17: 150.00 | BD17: 50.00 | BE17: 255.00 | BG17: 0.7 | BH17: 15 | BI17: 1.70 | BJ17: 68.00 | BK17: 80.00 | BL17: 40.00 | BM17: 136.00 | BN17: 28.00 | BO17: 80.00 | BP17: 40.00 | BQ17: 56.00 | BR17: 40.00 | BS17: 56.00 | BT17: 68.00 | BU17: 80.00 | BV17: 40.00 | BW17: 136.00 | BX17: 28.00 | BY17: 80.00 | BZ17: 40.00 | CA17: 56.00 | CB17: 28.00 | CC17: 80.00 | CD17: 68.00 | CE17: 80.00 | CF17: 40.00 | CG17: 136.00 | CH17: 28.00 | CI17: 80.00 | CJ17: 40.00 | CK17: 56.00 | CL17: 28.00 | CM17: 80.00 | CN17: 68.00 | CO17: 80.00 | CP17: 40.00 | CQ17: 136.00 | CR17: 28.00 | CS17: 80.00 | CT17: 40.00 | CU17: 56.00 | CV17: 40.00 | CW17: 56.00 | CX17: 68.00 | CY17: 80.00 | CZ17: 40.00 | DA17: 136.00 | DB17: 28.00 | DC17: 80.00 | DD17: 40.00 | DE17: 56.00 | DF17: 28.00 | DG17: 80.00 | DH17: 68.00 | DI17: 80.00 | DJ17: 40.00 | DK17: 136.00 | DL17: 28.00 | DM17: 80.00 | DN17: 40.00 | DO17: 56.00 | DP17: 28.00 | DQ17: 80.00 | DR17: 68.00 | DS17: 80.00 | DT17: 40.00 | DU17: 136.00 | DV17: 28.00 | DW17: 80.00 | DX17: 40.00 | DY17: 56.00 | DZ17: 40.00 | EA17: 56.00 | EB17: 68.00 | EC17: 80.00 | ED17: 40.00 | EE17: 136.00 | EF17: 28.00 | EG17: 80.00 | EH17: 40.00 | EI17: 56.00 | EJ17: 28.00 | EK17: 80.00 | EL17: 68.00 | EM17: 80.00 | EN17: 40.00 | EO17: 136.00 | EP17: 28.00 | EQ17: 80.00 | ER17: 40.00 | ES17: 56.00 | ET17: 28.00 | EU17: 80.00 | EX17: 16 | EY17: 15.00 | EZ17: 375.00 | FA17: 26.67 | FB17: 34.67 | FC17: 18.67 | FD17: 0.25 | FE17: 3.8 | FF17: 100.0 | FG17: 73.7 | FH17: 100.0 | FI17: 73.7 | FJ17: 0.1 | FK17: 0.7 | FM17: 16 | FN17: 15.00 | FO17: 375.00 | FP17: 17.07 | FQ17: 26.67 | FR17: 9.60 | FS17: 0.25 | FT17: 3.75 | FU17: 100.00 | FV17: 47.15789474 | FW17: 64.00 | FX17: 73.68421053 | FY17: 0.1 | FZ17: 0.7 | GF17: 0.65 | GG17: 13.00 | GH17: 0 | GI17: 3.61 | GJ17: 5.10 | GK17: 6.24 | GL17: 7.21 | GM17: 8.06 | GN17: 8.83 | GO17: 9.54 | GP17: 10.20 | GQ17: 10.82 | GR17: 11.40 | GS17: 11.96 | GT17: 12.49 | GU17: 13.00 | GV17: 13.49 | GW17: 13.96 | GX17: 14.42 | GY17: 14.87 | GZ17: 15.30 | HA17: 15.72 | HB17: 16.12 | HE17: 16 | HF17: 15.00 | HG17: 250.00 | HH17: 20.36 | HI17: 20.36 | HJ17: 20.36 | HK17: 0.2 | HL17: 2.5 | HM17: 100.0 | HN17: 47.2 | HO17: 64.0 | HP17: 73.7 | HQ17: 0.1 | HR17: 0.7 | HS17: 100.0 | HV17: 47.2 | HW17: 64.0 | HX17: 73.7 | HY17: 100.0 | HZ17: 47.2 | IA17: 64.0 | IB17: 73.7 | IE17: 15 | IF17: 0.70 | IG17: 21.00 | IH17: 9.00 | II17: 9.00 | IJ17: 9.00 | IK17: 10.00 | IL17: 14.00 | IM17: 20.00 | IN17: 7.00 | IO17: 10.00 | IP17: 14.00 | IQ17: 20.00 | IR17: 7.00 | IS17: 10.00 | IT17: 14.00 | IU17: 20.00 | IV17: 7.00
A18: 16 | B18: 0.75 | C18: 30.00 | D18: 0 | E18: 40.00 | F18: (40.00) | G18: ='Sustitutos FPlp'!$D$11 -> 20.00 | H18: 30.00 | I18: ='Sustitutos FPlp'!$F$11 -> 40.00 | J18: 15.00 | K18: 30.00 | L18: 0 | M18: 40.00 | N18: (40.00) | Q18: 0.75 | R18: 16 | S18: 1.75 | T18: 175.00 | U18: 200.00 | V18: 100.00 | W18: 350.00 | X18: 75.00 | Y18: 200.00 | Z18: 100.00 | AA18: 150.00 | AB18: 100.00 | AC18: 150.00 | AD18: 175.00 | AE18: 200.00 | AF18: 100.00 | AG18: 350.00 | AH18: 75.00 | AI18: 200.00 | AJ18: 100.00 | AK18: 150.00 | AL18: 75.00 | AM18: 200.00 | AN18: 175.00 | AO18: 200.00 | AP18: 100.00 | AQ18: 350.00 | AR18: 75.00 | AS18: 200.00 | AT18: 100.00 | AU18: 150.00 | AV18: 75.00 | AW18: 200.00 | AX18: 262.50 | AY18: 250.00 | AZ18: 150.00 | BA18: 437.50 | BB18: 87.50 | BC18: 150.00 | BD18: 50.00 | BE18: 262.50 | BG18: 0.75 | BH18: 16 | BI18: 1.75 | BJ18: 70.00 | BK18: 80.00 | BL18: 40.00 | BM18: 140.00 | BN18: 30.00 | BO18: 80.00 | BP18: 40.00 | BQ18: 60.00 | BR18: 40.00 | BS18: 60.00 | BT18: 70.00 | BU18: 80.00 | BV18: 40.00 | BW18: 140.00 | BX18: 30.00 | BY18: 80.00 | BZ18: 40.00 | CA18: 60.00 | CB18: 30.00 | CC18: 80.00 | CD18: 70.00 | CE18: 80.00 | CF18: 40.00 | CG18: 140.00 | CH18: 30.00 | CI18: 80.00 | CJ18: 40.00 | CK18: 60.00 | CL18: 30.00 | CM18: 80.00 | CN18: 70.00 | CO18: 80.00 | CP18: 40.00 | CQ18: 140.00 | CR18: 30.00 | CS18: 80.00 | CT18: 40.00 | CU18: 60.00 | CV18: 40.00 | CW18: 60.00 | CX18: 70.00 | CY18: 80.00 | CZ18: 40.00 | DA18: 140.00 | DB18: 30.00 | DC18: 80.00 | DD18: 40.00 | DE18: 60.00 | DF18: 30.00 | DG18: 80.00 | DH18: 70.00 | DI18: 80.00 | DJ18: 40.00 | DK18: 140.00 | DL18: 30.00 | DM18: 80.00 | DN18: 40.00 | DO18: 60.00 | DP18: 30.00 | DQ18: 80.00 | DR18: 70.00 | DS18: 80.00 | DT18: 40.00 | DU18: 140.00 | DV18: 30.00 | DW18: 80.00 | DX18: 40.00 | DY18: 60.00 | DZ18: 40.00 | EA18: 60.00 | EB18: 70.00 | EC18: 80.00 | ED18: 40.00 | EE18: 140.00 | EF18: 30.00 | EG18: 80.00 | EH18: 40.00 | EI18: 60.00 | EJ18: 30.00 | EK18: 80.00 | EL18: 70.00 | EM18: 80.00 | EN18: 40.00 | EO18: 140.00 | EP18: 30.00 | EQ18: 80.00 | ER18: 40.00 | ES18: 60.00 | ET18: 30.00 | EU18: 80.00 | EX18: 17 | EY18: 16.00 | EZ18: 400.00 | FA18: 25.00 | FB18: 32.50 | FC18: 17.50 | FD18: 0.25 | FE18: 4.0 | FF18: 100.0 | FG18: 78.9 | FH18: 100.0 | FI18: 78.9 | FJ18: 0.1 | FK18: 0.8 | FM18: 17 | FN18: 16.00 | FO18: 400.00 | FP18: 16.00 | FQ18: 25.00 | FR18: 9.00 | FS18: 0.25 | FT18: 4 | FU18: 100.00 | FV18: 50.52631579 | FW18: 64.00 | FX18: 78.94736842 | FY18: 0.1 | FZ18: 0.8 | GF18: 0.70 | GG18: 14.00 | GH18: 0 | GI18: 3.74 | GJ18: 5.29 | GK18: 6.48 | GL18: 7.48 | GM18: 8.37 | GN18: 9.17 | GO18: 9.90 | GP18: 10.58 | GQ18: 11.22 | GR18: 11.83 | GS18: 12.41 | GT18: 12.96 | GU18: 13.49 | GV18: 14.00 | GW18: 14.49 | GX18: 14.97 | GY18: 15.43 | GZ18: 15.87 | HA18: 16.31 | HB18: 16.73 | HE18: 17 | HF18: 16.00 | HG18: 266.67 | HH18: 18.78 | HI18: 18.78 | HJ18: 18.78 | HK18: 0.2 | HL18: 2.7 | HM18: 100.0 | HN18: 50.5 | HO18: 64.0 | HP18: 78.9 | HQ18: 0.1 | HR18: 0.8 | HS18: 100.0 | HV18: 50.5 | HW18: 64.0 | HX18: 78.9 | HY18: 100.0 | HZ18: 50.5 | IA18: 64.0 | IB18: 78.9 | IE18: 16 | IF18: 0.75 | IG18: 22.50 | IH18: 7.50 | II18: 7.50 | IJ18: 7.50 | IK18: 10.00 | IL18: 15.00 | IM18: 20.00 | IN18: 7.50 | IO18: 10.00 | IP18: 15.00 | IQ18: 20.00 | IR18: 7.50 | IS18: 10.00 | IT18: 15.00 | IU18: 20.00 | IV18: 7.50
A19: 17 | B19: 0.80 | C19: 32.00 | D19: (8.00) | E19: 32.00 | F19: (48.00) | G19: ='Sustitutos FPlp'!$D$11 -> 20.00 | H19: 32.00 | I19: ='Sustitutos FPlp'!$F$11 -> 40.00 | J19: 16.00 | K19: 32.00 | L19: (8.00) | M19: 32.00 | N19: (48.00) | Q19: 0.8 | R19: 17 | S19: 1.80 | T19: 180.00 | U19: 200.00 | V19: 100.00 | W19: 360.00 | X19: 80.00 | Y19: 200.00 | Z19: 100.00 | AA19: 160.00 | AB19: 100.00 | AC19: 160.00 | AD19: 180.00 | AE19: 200.00 | AF19: 100.00 | AG19: 360.00 | AH19: 80.00 | AI19: 200.00 | AJ19: 100.00 | AK19: 160.00 | AL19: 80.00 | AM19: 200.00 | AN19: 180.00 | AO19: 200.00 | AP19: 100.00 | AQ19: 360.00 | AR19: 80.00 | AS19: 200.00 | AT19: 100.00 | AU19: 160.00 | AV19: 80.00 | AW19: 200.00 | AX19: 270.00 | AY19: 250.00 | AZ19: 150.00 | BA19: 450.00 | BB19: 90.00 | BC19: 150.00 | BD19: 50.00 | BE19: 270.00 | BG19: 0.8 | BH19: 17 | BI19: 1.80 | BJ19: 72.00 | BK19: 80.00 | BL19: 40.00 | BM19: 144.00 | BN19: 32.00 | BO19: 80.00 | BP19: 40.00 | BQ19: 64.00 | BR19: 40.00 | BS19: 64.00 | BT19: 72.00 | BU19: 80.00 | BV19: 40.00 | BW19: 144.00 | BX19: 32.00 | BY19: 80.00 | BZ19: 40.00 | CA19: 64.00 | CB19: 32.00 | CC19: 80.00 | CD19: 72.00 | CE19: 80.00 | CF19: 40.00 | CG19: 144.00 | CH19: 32.00 | CI19: 80.00 | CJ19: 40.00 | CK19: 64.00 | CL19: 32.00 | CM19: 80.00 | CN19: 72.00 | CO19: 80.00 | CP19: 40.00 | CQ19: 144.00 | CR19: 32.00 | CS19: 80.00 | CT19: 40.00 | CU19: 64.00 | CV19: 40.00 | CW19: 64.00 | CX19: 72.00 | CY19: 80.00 | CZ19: 40.00 | DA19: 144.00 | DB19: 32.00 | DC19: 80.00 | DD19: 40.00 | DE19: 64.00 | DF19: 32.00 | DG19: 80.00 | DH19: 72.00 | DI19: 80.00 | DJ19: 40.00 | DK19: 144.00 | DL19: 32.00 | DM19: 80.00 | DN19: 40.00 | DO19: 64.00 | DP19: 32.00 | DQ19: 80.00 | DR19: 72.00 | DS19: 80.00 | DT19: 40.00 | DU19: 144.00 | DV19: 32.00 | DW19: 80.00 | DX19: 40.00 | DY19: 64.00 | DZ19: 40.00 | EA19: 64.00 | EB19: 72.00 | EC19: 80.00 | ED19: 40.00 | EE19: 144.00 | EF19: 32.00 | EG19: 80.00 | EH19: 40.00 | EI19: 64.00 | EJ19: 32.00 | EK19: 80.00 | EL19: 72.00 | EM19: 80.00 | EN19: 40.00 | EO19: 144.00 | EP19: 32.00 | EQ19: 80.00 | ER19: 40.00 | ES19: 64.00 | ET19: 32.00 | EU19: 80.00 | EX19: 18 | EY19: 17.00 | EZ19: 425.00 | FA19: 23.53 | FB19: 30.59 | FC19: 16.47 | FD19: 0.25 | FE19: =FE18+FD19 -> 4.3 | FF19: 100.0 | FG19: 84.2 | FH19: 100.0 | FI19: 84.2 | FJ19: 0.1 | FK19: =FK18+FJ19 -> 0.8 | FM19: 18 | FN19: 17.00 | FO19: 425.00 | FP19: 15.06 | FQ19: 23.53 | FR19: 8.47 | FS19: 0.25 | FT19: =FT18+FS19 -> 4.25 | FU19: 100.00 | FV19: 53.89473684 | FW19: 64.00 | FX19: 84.21052632 | FY19: 0.1 | FZ19: =FZ18+FY19 -> 0.8 | GF19: 0.75 | GG19: 15.00 | GH19: 0 | GI19: 3.87 | GJ19: 5.48 | GK19: 6.71 | GL19: 7.75 | GM19: 8.66 | GN19: 9.49 | GO19: 10.25 | GP19: 10.95 | GQ19: 11.62 | GR19: 12.25 | GS19: 12.85 | GT19: 13.42 | GU19: 13.96 | GV19: 14.49 | GW19: 15.00 | GX19: =$GD$3*$GG19^$GD$5*GX$3^$GD$7 -> 15.49 | GY19: 15.97 | GZ19: 16.43 | HA19: 16.88 | HB19: 17.32 | HE19: 18 | HF19: 17.00 | HG19: 283.33 | HH19: 17.41 | HI19: 17.41 | HJ19: 17.41 | HK19: 0.2 | HL19: =HL18+HK19 -> 2.8 | HM19: 100.0 | HN19: 53.9 | HO19: 64.0 | HP19: 84.2 | HQ19: 0.1 | HR19: =HR18+HQ19 -> 0.8 | HS19: 100.0 | HV19: 53.9 | HW19: 64.0 | HX19: 84.2 | HY19: 100.0 | HZ19: 53.9 | IA19: 64.0 | IB19: 84.2 | IE19: 17 | IF19: 0.80 | IG19: 24.00 | IH19: 6.00 | II19: 6.00 | IJ19: 6.00 | IK19: 10.00 | IL19: 16.00 | IM19: 20.00 | IN19: 8.00 | IO19: 10.00 | IP19: 16.00 | IQ19: 20.00 | IR19: 8.00 | IS19: 10.00 | IT19: 16.00 | IU19: 20.00 | IV19: 8.00
A20: 18 | B20: 0.85 | C20: 34.00 | D20: (16.00) | E20: 24.00 | F20: (56.00) | G20: ='Sustitutos FPlp'!$D$11 -> 20.00 | H20: 34.00 | I20: ='Sustitutos FPlp'!$F$11 -> 40.00 | J20: 17.00 | K20: 34.00 | L20: (16.00) | M20: 24.00 | N20: (56.00) | Q20: 0.85 | R20: 18 | S20: 1.85 | T20: 185.00 | U20: 200.00 | V20: 100.00 | W20: 370.00 | X20: 85.00 | Y20: 200.00 | Z20: 100.00 | AA20: 170.00 | AB20: 100.00 | AC20: 170.00 | AD20: 185.00 | AE20: 200.00 | AF20: 100.00 | AG20: 370.00 | AH20: 85.00 | AI20: 200.00 | AJ20: 100.00 | AK20: 170.00 | AL20: 85.00 | AM20: 200.00 | AN20: 185.00 | AO20: 200.00 | AP20: 100.00 | AQ20: 370.00 | AR20: 85.00 | AS20: 200.00 | AT20: 100.00 | AU20: 170.00 | AV20: 85.00 | AW20: 200.00 | AX20: 277.50 | AY20: 250.00 | AZ20: 150.00 | BA20: 462.50 | BB20: 92.50 | BC20: 150.00 | BD20: 50.00 | BE20: 277.50 | BG20: 0.85 | BH20: 18 | BI20: 1.85 | BJ20: 74.00 | BK20: 80.00 | BL20: 40.00 | BM20: 148.00 | BN20: 34.00 | BO20: 80.00 | BP20: 40.00 | BQ20: 68.00 | BR20: 40.00 | BS20: 68.00 | BT20: 74.00 | BU20: 80.00 | BV20: 40.00 | BW20: 148.00 | BX20: 34.00 | BY20: 80.00 | BZ20: 40.00 | CA20: 68.00 | CB20: 34.00 | CC20: 80.00 | CD20: 74.00 | CE20: 80.00 | CF20: 40.00 | CG20: 148.00 | CH20: 34.00 | CI20: 80.00 | CJ20: 40.00 | CK20: 68.00 | CL20: 34.00 | CM20: 80.00 | CN20: 74.00 | CO20: 80.00 | CP20: 40.00 | CQ20: 148.00 | CR20: 34.00 | CS20: 80.00 | CT20: 40.00 | CU20: 68.00 | CV20: 40.00 | CW20: 68.00 | CX20: 74.00 | CY20: 80.00 | CZ20: 40.00 | DA20: 148.00 | DB20: 34.00 | DC20: 80.00 | DD20: 40.00 | DE20: 68.00 | DF20: 34.00 | DG20: 80.00 | DH20: 74.00 | DI20: 80.00 | DJ20: 40.00 | DK20: 148.00 | DL20: 34.00 | DM20: 80.00 | DN20: 40.00 | DO20: 68.00 | DP20: 34.00 | DQ20: 80.00 | DR20: 74.00 | DS20: 80.00 | DT20: 40.00 | DU20: 148.00 | DV20: 34.00 | DW20: 80.00 | DX20: 40.00 | DY20: 68.00 | DZ20: 40.00 | EA20: 68.00 | EB20: 74.00 | EC20: 80.00 | ED20: 40.00 | EE20: 148.00 | EF20: 34.00 | EG20: 80.00 | EH20: 40.00 | EI20: 68.00 | EJ20: 34.00 | EK20: 80.00 | EL20: 74.00 | EM20: 80.00 | EN20: 40.00 | EO20: 148.00 | EP20: 34.00 | EQ20: 80.00 | ER20: 40.00 | ES20: 68.00 | ET20: 34.00 | EU20: 80.00 | EX20: 19 | EY20: 18.00 | EZ20: 450.00 | FA20: 22.22 | FB20: 28.89 | FC20: 15.56 | FD20: 0.25 | FE20: 4.5 | FF20: 100.0 | FG20: 89.5 | FH20: 100.0 | FI20: 89.5 | FJ20: 0.1 | FK20: 0.9 | FM20: 19 | FN20: 18.00 | FO20: 450.00 | FP20: 14.22 | FQ20: 22.22 | FR20: 8.00 | FS20: 0.25 | FT20: 4.5 | FU20: 100.00 | FV20: 57.26315789 | FW20: 64.00 | FX20: 89.47368421 | FY20: 0.1 | FZ20: =FZ19+FY20 -> 0.9 | GF20: 0.80 | GG20: 16.00 | GH20: 0 | GI20: =$GD$3*$GG20^$GD$5*GI$3^$GD$7 -> 4.00 | GJ20: 5.66 | GK20: 6.93 | GL20: 8.00 | GM20: 8.94 | GN20: 9.80 | GO20: 10.58 | GP20: 11.31 | GQ20: 12.00 | GR20: 12.65 | GS20: 13.27 | GT20: 13.86 | GU20: 14.42 | GV20: 14.97 | GW20: 15.49 | GX20: 16.00 | GY20: 16.49 | GZ20: 16.97 | HA20: 17.44 | HB20: 17.89 | HE20: 19 | HF20: 18.00 | HG20: 300.00 | HH20: 16.21 | HI20: 16.21 | HJ20: 16.21 | HK20: 0.2 | HL20: 3.0 | HM20: 100.0 | HN20: 57.3 | HO20: 64.0 | HP20: 89.5 | HQ20: 0.1 | HR20: 0.9 | HS20: 100.0 | HV20: 57.3 | HW20: 64.0 | HX20: 89.5 | HY20: 100.0 | HZ20: 57.3 | IA20: 64.0 | IB20: 89.5 | IE20: 18 | IF20: 0.85 | IG20: 25.50 | IH20: 4.50 | II20: 4.50 | IJ20: 4.50 | IK20: 10.00 | IL20: 17.00 | IM20: 20.00 | IN20: 8.50 | IO20: 10.00 | IP20: 17.00 | IQ20: 20.00 | IR20: 8.50 | IS20: 10.00 | IT20: 17.00 | IU20: 20.00 | IV20: 8.50
A21: 19 | B21: 0.90 | C21: 36.00 | D21: (24.00) | E21: 16.00 | F21: (64.00) | G21: ='Sustitutos FPlp'!$D$11 -> 20.00 | H21: 36.00 | I21: ='Sustitutos FPlp'!$F$11 -> 40.00 | J21: 18.00 | K21: 36.00 | L21: (24.00) | M21: 16.00 | N21: (64.00) | Q21: 0.9 | R21: 19 | S21: 1.90 | T21: 190.00 | U21: 200.00 | V21: 100.00 | W21: 380.00 | X21: 90.00 | Y21: 200.00 | Z21: 100.00 | AA21: 180.00 | AB21: 100.00 | AC21: 180.00 | AD21: 190.00 | AE21: 200.00 | AF21: 100.00 | AG21: 380.00 | AH21: 90.00 | AI21: 200.00 | AJ21: 100.00 | AK21: 180.00 | AL21: 90.00 | AM21: 200.00 | AN21: 190.00 | AO21: 200.00 | AP21: 100.00 | AQ21: 380.00 | AR21: 90.00 | AS21: 200.00 | AT21: 100.00 | AU21: 180.00 | AV21: 90.00 | AW21: 200.00 | AX21: 285.00 | AY21: 250.00 | AZ21: 150.00 | BA21: 475.00 | BB21: 95.00 | BC21: 150.00 | BD21: 50.00 | BE21: 285.00 | BG21: 0.9 | BH21: 19 | BI21: 1.90 | BJ21: 76.00 | BK21: 80.00 | BL21: 40.00 | BM21: 152.00 | BN21: 36.00 | BO21: 80.00 | BP21: 40.00 | BQ21: 72.00 | BR21: 40.00 | BS21: 72.00 | BT21: 76.00 | BU21: 80.00 | BV21: 40.00 | BW21: 152.00 | BX21: 36.00 | BY21: 80.00 | BZ21: 40.00 | CA21: 72.00 | CB21: 36.00 | CC21: 80.00 | CD21: 76.00 | CE21: 80.00 | CF21: 40.00 | CG21: 152.00 | CH21: 36.00 | CI21: 80.00 | CJ21: 40.00 | CK21: 72.00 | CL21: 36.00 | CM21: 80.00 | CN21: 76.00 | CO21: 80.00 | CP21: 40.00 | CQ21: 152.00 | CR21: 36.00 | CS21: 80.00 | CT21: 40.00 | CU21: 72.00 | CV21: 40.00 | CW21: 72.00 | CX21: 76.00 | CY21: 80.00 | CZ21: 40.00 | DA21: 152.00 | DB21: 36.00 | DC21: 80.00 | DD21: 40.00 | DE21: 72.00 | DF21: 36.00 | DG21: 80.00 | DH21: 76.00 | DI21: 80.00 | DJ21: 40.00 | DK21: 152.00 | DL21: 36.00 | DM21: 80.00 | DN21: 40.00 | DO21: 72.00 | DP21: 36.00 | DQ21: 80.00 | DR21: 76.00 | DS21: 80.00 | DT21: 40.00 | DU21: 152.00 | DV21: 36.00 | DW21: 80.00 | DX21: 40.00 | DY21: 72.00 | DZ21: 40.00 | EA21: 72.00 | EB21: 76.00 | EC21: 80.00 | ED21: 40.00 | EE21: 152.00 | EF21: 36.00 | EG21: 80.00 | EH21: 40.00 | EI21: 72.00 | EJ21: 36.00 | EK21: 80.00 | EL21: 76.00 | EM21: 80.00 | EN21: 40.00 | EO21: 152.00 | EP21: 36.00 | EQ21: 80.00 | ER21: 40.00 | ES21: 72.00 | ET21: 36.00 | EU21: 80.00 | EX21: 20 | EY21: 19.00 | EZ21: 475.00 | FA21: 21.05 | FB21: 27.37 | FC21: 14.74 | FD21: 0.25 | FE21: 4.8 | FF21: 100.0 | FG21: 94.7 | FH21: 100.0 | FI21: 94.7 | FJ21: 0.1 | FK21: 0.9 | FM21: 20 | FN21: 19.00 | FO21: 475.00 | FP21: 13.47 | FQ21: 21.05 | FR21: 7.58 | FS21: 0.25 | FT21: 4.75 | FU21: 100.00 | FV21: 60.63157895 | FW21: 64.00 | FX21: 94.73684211 | FY21: 0.1 | FZ21: =FZ20+FY21 -> 0.9 | GF21: 0.85 | GG21: 17.00 | GH21: =$GD$3*$GG21^$GD$5*GH$3^$GD$7 -> 0 | GI21: 4.12 | GJ21: 5.83 | GK21: 7.14 | GL21: 8.25 | GM21: 9.22 | GN21: 10.10 | GO21: 10.91 | GP21: 11.66 | GQ21: 12.37 | GR21: 13.04 | GS21: 13.67 | GT21: 14.28 | GU21: 14.87 | GV21: 15.43 | GW21: 15.97 | GX21: 16.49 | GY21: 17.00 | GZ21: 17.49 | HA21: 17.97 | HB21: 18.44 | HE21: 20 | HF21: 19.00 | HG21: 316.67 | HH21: 15.15 | HI21: 15.15 | HJ21: 15.15 | HK21: 0.2 | HL21: 3.2 | HM21: 100.0 | HN21: 60.6 | HO21: 64.0 | HP21: 94.7 | HQ21: 0.1 | HR21: 0.9 | HS21: 100.0 | HV21: 60.6 | HW21: 64.0 | HX21: 94.7 | HY21: 100.0 | HZ21: 60.6 | IA21: 64.0 | IB21: 94.7 | IE21: 19 | IF21: 0.90 | IG21: 27.00 | IH21: 3.00 | II21: 3.00 | IJ21: 3.00 | IK21: 10.00 | IL21: 18.00 | IM21: 20.00 | IN21: 9.00 | IO21: 10.00 | IP21: 18.00 | IQ21: 20.00 | IR21: 9.00 | IS21: 10.00 | IT21: 18.00 | IU21: 20.00 | IV21: 9.00
A22: 20 | B22: 0.95 | C22: 38.00 | D22: (32.00) | E22: 8.00 | F22: (72.00) | G22: ='Sustitutos FPlp'!$D$11 -> 20.00 | H22: 38.00 | I22: ='Sustitutos FPlp'!$F$11 -> 40.00 | J22: 19.00 | K22: 38.00 | L22: (32.00) | M22: 8.00 | N22: (72.00) | Q22: 0.95 | R22: 20 | S22: 1.95 | T22: 195.00 | U22: 200.00 | V22: 100.00 | W22: 390.00 | X22: 95.00 | Y22: 200.00 | Z22: 100.00 | AA22: 190.00 | AB22: 100.00 | AC22: 190.00 | AD22: 195.00 | AE22: 200.00 | AF22: 100.00 | AG22: 390.00 | AH22: 95.00 | AI22: 200.00 | AJ22: 100.00 | AK22: 190.00 | AL22: 95.00 | AM22: 200.00 | AN22: 195.00 | AO22: 200.00 | AP22: 100.00 | AQ22: 390.00 | AR22: 95.00 | AS22: 200.00 | AT22: 100.00 | AU22: 190.00 | AV22: 95.00 | AW22: 200.00 | AX22: 292.50 | AY22: 250.00 | AZ22: 150.00 | BA22: 487.50 | BB22: 97.50 | BC22: 150.00 | BD22: 50.00 | BE22: 292.50 | BG22: 0.95 | BH22: 20 | BI22: 1.95 | BJ22: 78.00 | BK22: 80.00 | BL22: 40.00 | BM22: 156.00 | BN22: 38.00 | BO22: 80.00 | BP22: 40.00 | BQ22: 76.00 | BR22: 40.00 | BS22: 76.00 | BT22: 78.00 | BU22: 80.00 | BV22: 40.00 | BW22: 156.00 | BX22: 38.00 | BY22: 80.00 | BZ22: 40.00 | CA22: 76.00 | CB22: 38.00 | CC22: 80.00 | CD22: 78.00 | CE22: 80.00 | CF22: 40.00 | CG22: 156.00 | CH22: 38.00 | CI22: 80.00 | CJ22: 40.00 | CK22: 76.00 | CL22: 38.00 | CM22: 80.00 | CN22: 78.00 | CO22: 80.00 | CP22: 40.00 | CQ22: 156.00 | CR22: 38.00 | CS22: 80.00 | CT22: 40.00 | CU22: 76.00 | CV22: 40.00 | CW22: 76.00 | CX22: 78.00 | CY22: 80.00 | CZ22: 40.00 | DA22: 156.00 | DB22: 38.00 | DC22: 80.00 | DD22: 40.00 | DE22: 76.00 | DF22: 38.00 | DG22: 80.00 | DH22: 78.00 | DI22: 80.00 | DJ22: 40.00 | DK22: 156.00 | DL22: 38.00 | DM22: 80.00 | DN22: 40.00 | DO22: 76.00 | DP22: 38.00 | DQ22: 80.00 | DR22: 78.00 | DS22: 80.00 | DT22: 40.00 | DU22: 156.00 | DV22: 38.00 | DW22: 80.00 | DX22: 40.00 | DY22: 76.00 | DZ22: 40.00 | EA22: 76.00 | EB22: 78.00 | EC22: 80.00 | ED22: 40.00 | EE22: 156.00 | EF22: 38.00 | EG22: 80.00 | EH22: 40.00 | EI22: 76.00 | EJ22: 38.00 | EK22: 80.00 | EL22: 78.00 | EM22: 80.00 | EN22: 40.00 | EO22: 156.00 | EP22: 38.00 | EQ22: 80.00 | ER22: 40.00 | ES22: 76.00 | ET22: 38.00 | EU22: 80.00 | EX22: 21 | EY22: 20.00 | EZ22: 500.00 | FA22: 20.00 | FB22: 26.00 | FC22: 14.00 | FD22: 0.25 | FE22: 5.0 | FF22: 100.0 | FG22: 100.0 | FH22: 100.0 | FI22: 100.0 | FJ22: 0.1 | FK22: 1.0 | FM22: 21 | FN22: 20.00 | FO22: 500.00 | FP22: 12.80 | FQ22: 20.00 | FR22: 7.20 | FS22: 0.25 | FT22: 5 | FU22: 100.00 | FV22: 64 | FW22: 64.00 | FX22: 100 | FY22: 0.1 | FZ22: =FZ21+FY22 -> 1.0 | GF22: 0.90 | GG22: 18.00 | GH22: 0 | GI22: 4.24 | GJ22: 6.00 | GK22: 7.35 | GL22: 8.49 | GM22: 9.49 | GN22: 10.39 | GO22: 11.22 | GP22: 12.00 | GQ22: 12.73 | GR22: 13.42 | GS22: 14.07 | GT22: 14.70 | GU22: 15.30 | GV22: 15.87 | GW22: 16.43 | GX22: 16.97 | GY22: 17.49 | GZ22: 18.00 | HA22: 18.49 | HB22: 18.97 | HE22: 21 | HF22: 20.00 | HG22: 333.33 | HH22: 14.21 | HI22: 14.21 | HJ22: 14.21 | HK22: 0.2 | HL22: 3.3 | HM22: 100.0 | HN22: 64.0 | HO22: 64.0 | HP22: 100.0 | HQ22: 0.1 | HR22: 1.0 | HS22: 100.0 | HV22: 64.0 | HW22: 64.0 | HX22: 100.0 | HY22: 100.0 | HZ22: 64.0 | IA22: 64.0 | IB22: 100.0 | IE22: 20 | IF22: 0.95 | IG22: 28.50 | IH22: 1.50 | II22: 1.50 | IJ22: 1.50 | IK22: 10.00 | IL22: 19.00 | IM22: 20.00 | IN22: 9.50 | IO22: 10.00 | IP22: 19.00 | IQ22: 20.00 | IR22: 9.50 | IS22: 10.00 | IT22: 19.00 | IU22: 20.00 | IV22: 9.50
A23: 21 | B23: 1.00 | C23: 40.00 | D23: (40.00) | E23: 0 | F23: (80.00) | G23: ='Sustitutos FPlp'!$D$11 -> 20.00 | H23: 40.00 | I23: ='Sustitutos FPlp'!$F$11 -> 40.00 | J23: 20.00 | K23: 38.00 | L23: (32.00) | M23: 8.00 | N23: (72.00) | Q23: 1 | R23: 21 | S23: 2.00 | T23: 200.00 | U23: 200.00 | V23: 100.00 | W23: 400.00 | X23: 100.00 | Y23: 200.00 | Z23: 100.00 | AA23: 200.00 | AB23: 100.00 | AC23: 200.00 | AD23: 200.00 | AE23: 200.00 | AF23: 100.00 | AG23: 400.00 | AH23: 100.00 | AI23: 200.00 | AJ23: 100.00 | AK23: 200.00 | AL23: 100.00 | AM23: 200.00 | AN23: 200.00 | AO23: 200.00 | AP23: 100.00 | AQ23: 400.00 | AR23: 100.00 | AS23: 200.00 | AT23: 100.00 | AU23: 200.00 | AV23: 100.00 | AW23: 200.00 | AX23: 300.00 | AY23: 250.00 | AZ23: 150.00 | BA23: 500.00 | BB23: 100.00 | BC23: 150.00 | BD23: 50.00 | BE23: 300.00 | BG23: 1 | BH23: 21 | BI23: 2.00 | BJ23: 80.00 | BK23: 80.00 | BL23: 40.00 | BM23: 160.00 | BN23: 40.00 | BO23: 80.00 | BP23: 40.00 | BQ23: 80.00 | BR23: 40.00 | BS23: 80.00 | BT23: 80.00 | BU23: 80.00 | BV23: 40.00 | BW23: 160.00 | BX23: 40.00 | BY23: 80.00 | BZ23: 40.00 | CA23: 80.00 | CB23: 40.00 | CC23: 80.00 | CD23: 80.00 | CE23: 80.00 | CF23: 40.00 | CG23: 160.00 | CH23: 40.00 | CI23: 80.00 | CJ23: 40.00 | CK23: 80.00 | CL23: 40.00 | CM23: 80.00 | CN23: 80.00 | CO23: 80.00 | CP23: 40.00 | CQ23: 160.00 | CR23: 40.00 | CS23: 80.00 | CT23: 40.00 | CU23: 80.00 | CV23: 40.00 | CW23: 80.00 | CX23: 80.00 | CY23: 80.00 | CZ23: 40.00 | DA23: 160.00 | DB23: 40.00 | DC23: 80.00 | DD23: 40.00 | DE23: 80.00 | DF23: 40.00 | DG23: 80.00 | DH23: 80.00 | DI23: 80.00 | DJ23: 40.00 | DK23: 160.00 | DL23: 40.00 | DM23: 80.00 | DN23: 40.00 | DO23: 80.00 | DP23: 40.00 | DQ23: 80.00 | DR23: 80.00 | DS23: 80.00 | DT23: 40.00 | DU23: 160.00 | DV23: 40.00 | DW23: 80.00 | DX23: 40.00 | DY23: 80.00 | DZ23: 40.00 | EA23: 80.00 | EB23: 80.00 | EC23: 80.00 | ED23: 40.00 | EE23: 160.00 | EF23: 40.00 | EG23: 80.00 | EH23: 40.00 | EI23: 80.00 | EJ23: 40.00 | EK23: 80.00 | EL23: 80.00 | EM23: 80.00 | EN23: 40.00 | EO23: 160.00 | EP23: 40.00 | EQ23: 80.00 | ER23: 40.00 | ES23: 80.00 | ET23: 40.00 | EU23: 80.00 | FP23: =FP3 -> 256.00 | FQ23: =FQ3 -> 400.00 | GF23: 0.95 | GG23: 19.00 | GH23: 0 | GI23: 4.36 | GJ23: 6.16 | GK23: 7.55 | GL23: 8.72 | GM23: 9.75 | GN23: 10.68 | GO23: 11.53 | GP23: 12.33 | GQ23: 13.08 | GR23: 13.78 | GS23: 14.46 | GT23: 15.10 | GU23: 15.72 | GV23: 16.31 | GW23: 16.88 | GX23: 17.44 | GY23: 17.97 | GZ23: 18.49 | HA23: 19.00 | HB23: 19.49 | IE23: 21 | IF23: 1.00 | IG23: 30.00 | IH23: 0 | II23: 0 | IJ23: 0 | IK23: 10.00 | IL23: 20.00 | IM23: 20.00 | IN23: 10.00 | IO23: 10.00 | IP23: 20.00 | IQ23: 20.00 | IR23: 10.00 | IS23: 10.00 | IT23: 20.00 | IU23: 20.00 | IV23: 10.00
T24: mínimo es q2 | AD24: mínimo es q1 | AN24: la selección correcta | BJ24: mínimo es q2 | BT24: mínimo es q1 | CD24: la selección correcta | CN24: mínimo es q2 | CX24: mínimo es q1 | DH24: la selección correcta | DR24: mínimo es q2 | EB24: mínimo es q1 | GF24: =GF23+$HC$3 -> 1.00 | GG24: =$GD$6*GF24 -> 20.00 | GH24: =$GD$3*$GG24^$GD$5*GH$3^$GD$7 -> 0 | GI24: 4.47 | GJ24: 6.32 | GK24: 7.75 | GL24: 8.94 | GM24: 10.00 | GN24: 10.95 | GO24: 11.83 | GP24: 12.65 | GQ24: 13.42 | GR24: 14.14 | GS24: 14.83 | GT24: 15.49 | GU24: 16.12 | GV24: 16.73 | GW24: 17.32 | GX24: 17.89 | GY24: =$GD$3*$GG24^$GD$5*GY$3^$GD$7 -> 18.44 | GZ24: =$GD$3*$GG24^$GD$5*GZ$3^$GD$7 -> 18.97 | HA24: =$GD$3*$GG24^$GD$5*HA$3^$GD$7 -> 19.49 | HB24: =$GD$3*$GG24^$GD$5*HB$3^$GD$7 -> 20.00
E25: FILTRO | S25: y | T25: a | U25: q1 | V25: b | W25: q2 | EX25: y | EY25: =EY26*(EY27^(EY28))*(EY29^(EY30)) -> 10,000.0 | FO25: x1 | FP25: ='Cobb-Douglas R2 FPlp'!C11 -> 100.00 | FQ25: x2 | FR25: ='Cobb-Douglas R2 FPlp'!C13 -> 64.00 | FS25: y | FT25: =FP27*(FP25^(FP26))*(FR25^(FR26)) -> 160.00 | HE25: y | HF25: =HF26*(HF27^(HF28))*(HF29^(HF30)) -> 105.6 | HG25: =HG26*(HG27^(HG28))*(HG29^(HG30)) -> 105.6 | HH25: =HH26*(HH27^(HH28))*(HH29^(HH30)) -> 105.6
E26: =LARGE(E27:E47,2) -> 0 | S26: =MIN(U28,V28) -> 100.0 | T26: 1.0 | U26: ='Complementarios FPlp'!D11 -> 100.0 | V26: ='Complementarios FPlp'!E11 -> 2.0 | W26: ='Complementarios FPlp'!F11 -> 200.0 | BH26: y | BI26: a | BJ26: q1 | BK26: b | BL26: q2 | EX26: A | EY26: ='Cobb-Douglas Especial FPlp'!C10 -> 1.0 | FO26: a | FP26: ='Cobb-Douglas R2 FPlp'!C12 -> 0.50 | FQ26: b | FR26: =1-FP26 -> 0.50 | FS26: Dy | FT26: ='Cobb-Douglas R2 FPlp'!B18 -> 40.00 | HE26: A | HF26: ='Cobb-Douglas Especial FPlpRE'!C10 -> 2.0 | HG26: =HF26 -> 2.0 | HH26: =HF26 -> 2.0
E27: =IF(E3<0,E3,($E$23*3)) -> 0 | F27: y | G27: a | H27: x1 | I27: b | J27: x2 | S27: Inserte los valores corres-pondientes de la función de producción (original) | U27: q1/a | V27: q2/b | BH27: =MIN(BK39,BL39) -> 2000.0 | BI27: ='Complementarios FPlpRE'!C10 -> 1.0 | BJ27: ='Complementarios FPlpRE'!C11 -> 40.0 | BK27: ='Complementarios FPlpRE'!C12 -> 2.0 | BL27: ='Complementarios FPlpRE'!C13 -> 80.0 | BN27: Con respecto a Iso1 | BO27: var fact q1 p det var q2 | BP27: var prod | BQ27: var fact | EX27: q1 | EY27: ='Cobb-Douglas Especial FPlp'!C11 -> 100.0 | FO27: A | FP27: ='Cobb-Douglas R2 FPlp'!C10 -> 2.00 | HE27: q1 | HF27: ='Cobb-Douglas Especial FPlpRE'!C11 -> 100.0 | HG27: ='Cobb-Douglas Especial FPlpRE'!D11 -> 100.0 | HH27: ='Cobb-Douglas Especial FPlpRE'!E11 -> 100.0 | HI27: =HG27/HF27 -> 1 | HJ27: =HH27/HF27 -> 1 | IJ27: y | IK27: a | IL27: x1 | IM27: b | IN27: x2
E28: 0 | F28: =(H28/G28)+(J28/I28) -> 30.0 | G28: ='Sustitutos FPlp'!C11 -> 1.0 | H28: ='Sustitutos FPlp'!D11 -> 20.0 | I28: ='Sustitutos FPlp'!E11 -> 4.0 | J28: ='Sustitutos FPlp'!F11 -> 40.0 | U28: =U26/T26 -> 100.0 | V28: =W26/V26 -> 100.0 | BH28: =MIN(BK40,BL40) -> 2000.0 | BI28: ='Complementarios FPlpRE'!D10 -> 1.0 | BJ28: ='Complementarios FPlpRE'!D11 -> 40.0 | BK28: ='Complementarios FPlpRE'!D12 -> 2.0 | BL28: =$BL$27*BO28 -> 80.0 | BN28: Iso2 | BO28: =BJ28/$BJ$27 -> 1.0 | BP28: =(BH28/$BH$27)-1 -> 0.0 | BQ28: =(BJ28/$BJ$27)-1 -> 0.0 | EX28: a | EY28: ='Cobb-Douglas Especial FPlp'!C12 -> 1.0 | FO28: PMgq1 | FP28: =(FP26*FP27*((FR25/FP25)^(FR26))) -> 0.80 | HE28: a | HF28: ='Cobb-Douglas Especial FPlpRE'!C12 -> 0.5 | HG28: =$HF$28 -> 0.5 | HH28: =$HF$28 -> 0.5 | IJ28: =((IK28*IL28)+(IM28*IN28))^$IJ$36 -> 15.2 | IK28: ='Sustitutos FPlpRE'!C10 -> 1.0 | IL28: ='Sustitutos FPlpRE'!C11 -> 10.0 | IM28: ='Sustitutos FPlpRE'!C12 -> 1.0 | IN28: ='Sustitutos FPlpRE'!C13 -> 20.0
E29: 0 | F29: Inserte los valores correspondientes de la función de producción (original) | U29: MIN | BH29: =MIN(BK41,BL41) -> 2000.0 | BI29: ='Complementarios FPlpRE'!E10 -> 1.0 | BJ29: ='Complementarios FPlpRE'!E11 -> 40.0 | BK29: ='Complementarios FPlpRE'!E12 -> 2.0 | BL29: =$BL$27*BO29 -> 80.0 | BN29: Iso3 | BO29: =BJ29/$BJ$27 -> 1.0 | BP29: =(BH29/$BH$27)-1 -> 0.0 | BQ29: =(BJ29/$BJ$27)-1 -> 0.0 | EX29: q2 | EY29: ='Cobb-Douglas Especial FPlp'!C13 -> 100.0 | FO29: PMgq2 | FP29: =(FR26*FP27*((FP25/FR25)^(FP26))) -> 1.25 | HE29: q2 | HF29: ='Cobb-Douglas Especial FPlpRE'!C13 -> 64.0 | HG29: =$HF$29*HI27 -> 64.0 | HH29: =$HF$29*HJ27 -> 64.0 | IJ29: =((IK29*IL29)+(IM29*IN29))^$IJ$36 -> 15.2 | IK29: =IK28 -> 1.0 | IL29: ='Sustitutos FPlpRE'!D11 -> 10.0 | IM29: =IM28 -> 1.0 | IN29: =IN28*IP29 -> 20.0 | IP29: =IL29/IL28 -> 1.0
E30: 0 | I30: PMgq1 | J30: =1/G28 -> 1.0 | BH30: Inserte los valores corres-pondientes de la función de producción (original) | EX30: b | EY30: ='Cobb-Douglas Especial FPlp'!C14 -> 1.0 | FO30: RTS | FP30: =FP28/FP29*-1 -> -0.64 | HE30: b | HF30: ='Cobb-Douglas Especial FPlpRE'!C14 -> 0.4 | HG30: =$HF$30 -> 0.4 | HH30: =$HF$30 -> 0.4 | IJ30: =((IK30*IL30)+(IM30*IN30))^$IJ$36 -> 15.2 | IK30: =IK28 -> 1.0 | IL30: ='Sustitutos FPlpRE'!E11 -> 10.0 | IM30: =IM28 -> 1.0 | IN30: =IN28*IP30 -> 20.0 | IP30: =IL30/IL28 -> 1.0
E31: 0 | F31: Cambio de Nivel | I31: PMgq2 | J31: =1/I28 -> 0.3 | S31: Cambio de Nivel | EY31: Inserte los valores correspondientes | HF31: Dq1 | HG31: =(HG27-HF27)/HF27 -> 0.000 | HH31: =(HH27-HF27)/HF27 -> 0.000
E32: 0 | F32: ='Sustitutos FPlp'!B16 -> 10.0 | I32: RTS | J32: =J30/J31*-1 -> -4.0 | S32: ='Complementarios FPlp'!B17 -> 50.0 | BH32: Parámetro "S" | BK32: q1/a | BL32: q2/b | BN32: y=(1,1) | HF32: Dq2 | HG32: =(HG29-HF29)/HF29 -> 0.000 | HH32: =(HH29-HF29)/HF29 -> 0.000
E33: 0 | BH33: ='Complementarios FPlpRE'!B17 -> 1.0 | BK33: =(BJ27/BI27) -> 40.0 | BL33: =(BL27/BK27) -> 40.0 | BN33: ='Complementarios FPlpRE'!E17 -> 50.0 | EX33: Cambio de Producción | HF33: Dy | HG33: =(HG25-HF25)/HF25 -> 0.000 | HH33: =(HH25-HF25)/HF25 -> 0.000 | IJ33: Inserte los valores correspondientes de la función de producción (original)
E34: 0 | BH34: Inserte el nivel de las funciones de producción en rojo y rosa | BK34: =(BJ28/BI28) -> 40.0 | BL34: =(BL28/BK28) -> 40.0 | EX34: ='Cobb-Douglas Especial FPlp'!B18 -> 3,000.0 | HF34: Rendimiento | HG34: =IF((HF28+HF30)<1,"DECRECIENTES",IF((HF28+HF30)>1,"CRECIENTES","CONSTANTES")) -> DECRECIENTES | IM34: PMgq1 | IN34: =IK28 -> 1.0 | IO34: =IK29 -> 1.0 | IP34: =IK30 -> 1.0
E35: 0 | BK35: =(BJ29/BI29) -> 40.0 | BL35: =(BL29/BK29) -> 40.0 | EX35: Inserte el nivel de las funciones de producción en rojo y rosa | IJ35: Parámetro "S" | IM35: PMgq2 | IN35: =IM28 -> 1.0 | IO35: =IM29 -> 1.0 | IP35: =IM30 -> 1.0
E36: 0 | BH36: RENDIMIENTOS | IJ36: ='Sustitutos FPlpRE'!B17 -> 0.8 | IM36: RTS | IN36: =IN34/IN35*-1 -> -1.0 | IO36: =IO34/IO35*-1 -> -1.0 | IP36: =IP34/IP35*-1 -> -1.0
E37: 0 | BH37: =IF(BH33<1,"DECRECIENTES",IF(BH33>1,"CRECIENTES","CONSTANTES")) -> CONSTANTES | BK37: Nivel de producción | EX37: PMgq1 | EY37: =(EY28*EY25)/EY27 -> 100.0 | HE37: PMgq1 | HF37: =(HF28*HF25)/HF27 -> 0.5 | HG37: =(HG28*HG25)/HG27 -> 0.5 | HH37: =(HH28*HH25)/HH27 -> 0.5
E38: 0 | BK38: q1/a | BL38: q2/b | EX38: PMgq2 | EY38: =(EY30*EY25)/EY29 -> 100.0 | HE38: PMgq2 | HF38: =(HF30*HF25)/HF29 -> 0.7 | HG38: =(HG30*HG25)/HG29 -> 0.7 | HH38: =(HH30*HH25)/HH29 -> 0.7 | IJ38: =IJ29/IJ28 -> 1 | IL38: =IF(IJ36<1,"DECRECIENTES",IF(IJ36>1,"CRECIENTES","CONSTANTES")) -> DECRECIENTES
E39: 0 | BK39: =((BJ27/BI27)^$BH$33)*$BN$33 -> 2000.0 | BL39: =((BL27/BK27)^$BH$33)*$BN$33 -> 2000.0 | EX39: RTS | EY39: =EY37/EY38*-1 -> -1.0 | HE39: RTS | HF39: =HF37/HF38*-1 -> -0.8 | HG39: =HG37/HG38*-1 -> -0.8 | HH39: =HH37/HH38*-1 -> -0.8 | IJ39: =IJ30/IJ28 -> 1
E40: 0 | BK40: =((BJ28/BI28)^$BH$33)*$BN$33 -> 2000.0 | BL40: =((BL28/BK28)^$BH$33)*$BN$33 -> 2000.0
E41: 0 | BK41: =((BJ29/BI29)^$BH$33)*$BN$33 -> 2000.0 | BL41: =((BL29/BK29)^$BH$33)*$BN$33 -> 2000.0
E42: 0
E43: 0
E44: 0
E45: 0
E46: 0
E47: 0
A55: ESC
A56: Unidades | B56: ponderador | C56: q1 | D56: q2 | E56: 6 | F56: X1 PONDE | P56: y | Q56: =Q57*(((Q59*(Q58^(-Q61)))+((1-Q59)*(Q60^(-Q61))))^(-1/Q61)) -> 200.0
A57: 2 | B57: 0 | C57: =+$B$82*B57 ->  | D57: =(((($B$80/$B$81)^(-$B$85))-($B$83*(C57^(-$B$85))))/(1-$B$83))^(-1/$B$85) ->  | E57: =1/$E$56 -> 0.17 | F57: =+E57 -> 0.17 | P57: A | Q57: =+ESCR3!C7 -> 2.0 | V57: =AP58 -> 0.05 | W57: =V57+$HC$3 -> 0.10 | X57: =W57+$HC$3 -> 0.15 | Y57: 0.20 | Z57: 0.25 | AA57: 0.30 | AB57: 0.35 | AC57: 0.40 | AD57: 0.45 | AE57: 0.50 | AF57: 0.55 | AG57: 0.60 | AH57: 0.65 | AI57: 0.70 | AJ57: 0.75 | AK57: 0.80 | AL57: 0.85 | AM57: 0.90 | AN57: 0.95 | AO57: 1.00
A58: 3 | B58: 0.10 | C58: =+$B$82*B58 ->  | E58: =1/$E$56 -> 0.17 | F58: =+F57+E58 -> 0.33 | P58: q1 | Q58: =+ESCR3!C8 -> 100.0 | U58: 0 | V58: =$Q$58*V57 -> 5.00 | W58: =$Q$58*W57 -> 10.00 | X58: 15.00 | Y58: 20.00 | Z58: 25.00 | AA58: 30.00 | AB58: 35.00 | AC58: 40.00 | AD58: 45.00 | AE58: 50.00 | AF58: 55.00 | AG58: 60.00 | AH58: 65.00 | AI58: 70.00 | AJ58: 75.00 | AK58: 80.00 | AL58: 85.00 | AM58: 90.00 | AN58: 95.00 | AO58: 100.00 | AP58: =1/20 -> 0.05
A59: 4 | B59: =+B58+0.1 -> 0.20 | E59: 0.17 | F59: =+F58+E59 -> 0.50 | P59: d | Q59: =+ESCR3!C9 -> 0.5 | T59: 0 | U59: =(((($B$80/$B$81)^(-$B$85))-($B$83*(T59^(-$B$85))))/(1-$B$83))^(-1/$B$85) ->  | V59: =$Q$57*((($Q$59*(V$58^(-$Q$61)))+((1-$Q$59)*($T59^(-$Q$61))))^(-1/$Q$61)) -> 
A60: 5 | B60: =+B59+0.1 -> 0.30 | E60: 0.17 | F60: 0.67 | P60: q2 | Q60: =+ESCR3!C10 -> 100.0 | S60: =AP58 -> 0.05 | T60: =$Q$60*S60 -> 5.00 | U60: =$Q$57*((($Q$59*(U$58^(-$Q$61)))+((1-$Q$59)*($T60^(-$Q$61))))^(-1/$Q$61)) ->  | V60: =$Q$57*((($Q$59*(V$58^(-$Q$61)))+((1-$Q$59)*($T60^(-$Q$61))))^(-1/$Q$61)) -> 10.00 | W60: 10.05 | X60: 10.05 | Y60: 10.05 | Z60: 10.05 | AA60: 10.05 | AB60: 10.05 | AC60: 10.05 | AD60: 10.05 | AE60: 10.05 | AF60: 10.05 | AG60: 10.05 | AH60: 10.05 | AI60: 10.05 | AJ60: 10.05 | AK60: 10.05 | AL60: 10.05 | AM60: 10.05 | AN60: 10.05 | AO60: 10.05
A61: 6 | B61: 0.40 | E61: 0.17 | F61: 0.83 | H61: =((B80/B81)^(-B85)) ->  | P61: r | Q61: =+ESCR3!C11 -> 150.0 | S61: =S60+$HC$3 -> 0.10 | T61: =$Q$60*S61 -> 10.00 | V61: 10.05 | W61: 20.00 | X61: 20.09 | Y61: 20.09 | Z61: 20.09 | AA61: 20.09 | AB61: 20.09 | AC61: 20.09 | AD61: 20.09 | AE61: 20.09 | AF61: 20.09 | AG61: 20.09 | AH61: 20.09 | AI61: 20.09 | AJ61: 20.09 | AK61: 20.09 | AL61: 20.09 | AM61: 20.09 | AN61: 20.09 | AO61: 20.09
A62: 7 | B62: 0.50 | E62: 0.17 | F62: 1.00 | H62: =(B83*(99.3095^(-B85))) ->  | Q62: Inserte los valores correspondientes | S62: 0.15 | T62: 15.00 | V62: 10.05 | W62: 20.09 | X62: 30.00 | Y62: 30.14 | Z62: 30.14 | AA62: 30.14 | AB62: 30.14 | AC62: 30.14 | AD62: 30.14 | AE62: 30.14 | AF62: 30.14 | AG62: 30.14 | AH62: 30.14 | AI62: 30.14 | AJ62: 30.14 | AK62: 30.14 | AL62: 30.14 | AM62: 30.14 | AN62: 30.14 | AO62: 30.14
A63: 8 | B63: 0.60 | E63: 0.17 | F63: 1.17 | H63: =1-B83 ->  | S63: 0.20 | T63: 20.00 | V63: 10.05 | W63: 20.09 | X63: 30.14 | Y63: 40.00 | Z63: 40.19 | AA63: 40.19 | AB63: 40.19 | AC63: 40.19 | AD63: 40.19 | AE63: 40.19 | AF63: 40.19 | AG63: 40.19 | AH63: 40.19 | AI63: 40.19 | AJ63: 40.19 | AK63: 40.19 | AL63: 40.19 | AM63: 40.19 | AN63: 40.19 | AO63: 40.19
A64: 9 | B64: 0.70 | E64: 0.17 | F64: 1.33 | H64: =+((H61-H62)/H63)^(-1/B85) ->  | I64: =+H61-H62 ->  | P64: Cambio de Producción | S64: 0.25 | T64: 25.00 | V64: 10.05 | W64: 20.09 | X64: 30.14 | Y64: 40.19 | Z64: 50.00 | AA64: 50.23 | AB64: 50.23 | AC64: 50.23 | AD64: 50.23 | AE64: 50.23 | AF64: 50.23 | AG64: 50.23 | AH64: 50.23 | AI64: 50.23 | AJ64: 50.23 | AK64: 50.23 | AL64: 50.23 | AM64: 50.23 | AN64: 50.23 | AO64: 50.23
A65: 10 | B65: 0.80 | E65: 0.17 | F65: 1.50 | I65: =+I64/H63 ->  | P65: 10.0 | S65: 0.30 | T65: 30.00 | V65: 10.05 | W65: 20.09 | X65: 30.14 | Y65: 40.19 | Z65: 50.23 | AA65: 60.00 | AB65: 60.28 | AC65: 60.28 | AD65: 60.28 | AE65: 60.28 | AF65: 60.28 | AG65: 60.28 | AH65: 60.28 | AI65: 60.28 | AJ65: 60.28 | AK65: 60.28 | AL65: 60.28 | AM65: 60.28 | AN65: 60.28 | AO65: 60.28
A66: 11 | B66: 0.90 | E66: 0.17 | F66: 1.67 | P66: PMgq1 | Q66: =(($Q$59)/($Q$57^$Q$61))*(($Q$56/$Q$60)^(1+$Q$61)) -> 1.00 | S66: 0.35 | T66: 35.00 | V66: 10.05 | W66: 20.09 | X66: 30.14 | Y66: 40.19 | Z66: 50.23 | AA66: 60.28 | AB66: 70.00 | AC66: 70.32 | AD66: 70.32 | AE66: 70.32 | AF66: 70.32 | AG66: 70.32 | AH66: 70.32 | AI66: 70.32 | AJ66: 70.32 | AK66: 70.32 | AL66: 70.32 | AM66: 70.32 | AN66: 70.32 | AO66: 70.32
A67: 12 | B67: 1.00 | E67: 0.17 | F67: 1.83 | I67: =+I65^(-1/B85) ->  | P67: PMgq2 | Q67: =((1-$Q$59)/($Q$57^$Q$61))*(($Q$56/$Q$58)^(1+$Q$61)) -> 1.00 | S67: 0.40 | T67: 40.00 | V67: 10.05 | W67: 20.09 | X67: 30.14 | Y67: 40.19 | Z67: 50.23 | AA67: 60.28 | AB67: 70.32 | AC67: 80.00 | AD67: 80.37 | AE67: 80.37 | AF67: 80.37 | AG67: 80.37 | AH67: 80.37 | AI67: 80.37 | AJ67: 80.37 | AK67: 80.37 | AL67: 80.37 | AM67: 80.37 | AN67: 80.37 | AO67: 80.37
A68: 13 | B68: 1.10 | E68: 0.17 | F68: 2.00 | P68: RTS | Q68: =(-((1-$Q$59)/$Q$59))*(($Q$58/$Q$60)^(1+$Q$61)) -> -1.00 | S68: 0.45 | T68: 45.00 | V68: 10.05 | W68: 20.09 | X68: 30.14 | Y68: 40.19 | Z68: 50.23 | AA68: 60.28 | AB68: 70.32 | AC68: 80.37 | AD68: 90.00 | AE68: 90.42 | AF68: 90.42 | AG68: 90.42 | AH68: 90.42 | AI68: 90.42 | AJ68: 90.42 | AK68: 90.42 | AL68: 90.42 | AM68: 90.42 | AN68: 90.42 | AO68: 90.42
A69: 14 | B69: 1.20 | E69: 0.17 | F69: 2.17 | S69: 0.50 | T69: 50.00 | V69: 10.05 | W69: 20.09 | X69: 30.14 | Y69: 40.19 | Z69: 50.23 | AA69: 60.28 | AB69: 70.32 | AC69: 80.37 | AD69: 90.42 | AE69: 100.00 | AF69: 100.46 | AG69: 100.46 | AH69: 100.46 | AI69: 100.46 | AJ69: 100.46 | AK69: 100.46 | AL69: 100.46 | AM69: 100.46 | AN69: 100.46 | AO69: 100.46
A70: 15 | B70: 1.30 | E70: 0.17 | F70: 2.33 | S70: 0.55 | T70: 55.00 | V70: 10.05 | W70: 20.09 | X70: 30.14 | Y70: 40.19 | Z70: 50.23 | AA70: 60.28 | AB70: 70.32 | AC70: 80.37 | AD70: 90.42 | AE70: 100.46 | AF70: 110.00 | AG70: 110.51 | AH70: 110.51 | AI70: 110.51 | AJ70: 110.51 | AK70: 110.51 | AL70: 110.51 | AM70: 110.51 | AN70: 110.51 | AO70: 110.51
A71: 16 | B71: 1.40 | E71: 0.17 | F71: 2.50 | S71: 0.60 | T71: 60.00 | V71: 10.05 | W71: 20.09 | X71: 30.14 | Y71: 40.19 | Z71: 50.23 | AA71: 60.28 | AB71: 70.32 | AC71: 80.37 | AD71: 90.42 | AE71: 100.46 | AF71: 110.51 | AG71: 120.00 | AH71: 120.56 | AI71: 120.56 | AJ71: 120.56 | AK71: 120.56 | AL71: 120.56 | AM71: 120.56 | AN71: 120.56 | AO71: 120.56
A72: 17 | B72: 1.50 | E72: 0.17 | F72: 2.67 | S72: 0.65 | T72: 65.00 | V72: 10.05 | W72: 20.09 | X72: 30.14 | Y72: 40.19 | Z72: 50.23 | AA72: 60.28 | AB72: 70.32 | AC72: 80.37 | AD72: 90.42 | AE72: 100.46 | AF72: =$Q$57*((($Q$59*(AF$58^(-$Q$61)))+((1-$Q$59)*($T72^(-$Q$61))))^(-1/$Q$61)) -> 110.51 | AG72: 120.56 | AH72: 130.00 | AI72: 130.60 | AJ72: 130.60 | AK72: 130.60 | AL72: 130.60 | AM72: 130.60 | AN72: 130.60 | AO72: 130.60
A73: 18 | B73: 1.60 | E73: 0.17 | F73: 2.83 | S73: 0.70 | T73: 70.00 | V73: 10.05 | W73: 20.09 | X73: 30.14 | Y73: 40.19 | Z73: 50.23 | AA73: 60.28 | AB73: 70.32 | AC73: 80.37 | AD73: 90.42 | AE73: 100.46 | AF73: 110.51 | AG73: 120.56 | AH73: 130.60 | AI73: 140.00 | AJ73: 140.65 | AK73: 140.65 | AL73: 140.65 | AM73: 140.65 | AN73: 140.65 | AO73: 140.65
A74: 19 | B74: 1.70 | E74: 0.17 | F74: 3.00 | S74: 0.75 | T74: 75.00 | V74: 10.05 | W74: 20.09 | X74: 30.14 | Y74: 40.19 | Z74: 50.23 | AA74: 60.28 | AB74: 70.32 | AC74: 80.37 | AD74: 90.42 | AE74: 100.46 | AF74: 110.51 | AG74: 120.56 | AH74: 130.60 | AI74: 140.65 | AJ74: 150.00 | AK74: 150.69 | AL74: 150.69 | AM74: 150.69 | AN74: 150.69 | AO74: 150.69
A75: 20 | B75: 1.80 | E75: 0.17 | F75: 3.17 | S75: 0.80 | T75: 80.00 | V75: 10.05 | W75: 20.09 | X75: 30.14 | Y75: 40.19 | Z75: 50.23 | AA75: 60.28 | AB75: 70.32 | AC75: 80.37 | AD75: 90.42 | AE75: 100.46 | AF75: 110.51 | AG75: 120.56 | AH75: 130.60 | AI75: 140.65 | AJ75: 150.69 | AK75: 160.00 | AL75: 160.74 | AM75: 160.74 | AN75: 160.74 | AO75: 160.74
A76: 21 | B76: 1.90 | E76: 0.17 | F76: 3.33 | S76: 0.85 | T76: 85.00 | V76: 10.05 | W76: 20.09 | X76: 30.14 | Y76: 40.19 | Z76: 50.23 | AA76: 60.28 | AB76: 70.32 | AC76: 80.37 | AD76: 90.42 | AE76: 100.46 | AF76: 110.51 | AG76: 120.56 | AH76: 130.60 | AI76: 140.65 | AJ76: 150.69 | AK76: 160.74 | AL76: 170.00 | AM76: 170.79 | AN76: 170.79 | AO76: 170.79
A77: 22 | B77: 2.00 | S77: 0.90 | T77: 90.00 | V77: 10.05 | W77: 20.09 | X77: 30.14 | Y77: 40.19 | Z77: 50.23 | AA77: 60.28 | AB77: 70.32 | AC77: 80.37 | AD77: 90.42 | AE77: 100.46 | AF77: 110.51 | AG77: 120.56 | AH77: 130.60 | AI77: 140.65 | AJ77: 150.69 | AK77: 160.74 | AL77: 170.79 | AM77: 180.00 | AN77: 180.83 | AO77: 180.83
S78: 0.95 | T78: 95.00 | V78: 10.05 | W78: 20.09 | X78: 30.14 | Y78: 40.19 | Z78: 50.23 | AA78: 60.28 | AB78: 70.32 | AC78: 80.37 | AD78: 90.42 | AE78: 100.46 | AF78: 110.51 | AG78: 120.56 | AH78: 130.60 | AI78: 140.65 | AJ78: 150.69 | AK78: 160.74 | AL78: 170.79 | AM78: 180.83 | AN78: 190.00 | AO78: 190.88
S79: =S78+$HC$3 -> 1.00 | T79: 100.00 | V79: 10.05 | W79: 20.09 | X79: 30.14 | Y79: 40.19 | Z79: 50.23 | AA79: 60.28 | AB79: 70.32 | AC79: 80.37 | AD79: 90.42 | AE79: 100.46 | AF79: 110.51 | AG79: 120.56 | AH79: 130.60 | AI79: 140.65 | AJ79: 150.69 | AK79: 160.74 | AL79: 170.79 | AM79: 180.83 | AN79: 190.88 | AO79: 200.00
A80: y | B80: 100.0 | C80: =B81*(((B83*(B82^(-B85)))+((1-B83)*(B84^(-B85))))^(-1/B85)) -> 
A81: A | B81: =+#REF! -> 
A82: q1 | B82: =+#REF! ->  | E82: =((((B80/B81)^-B85)-(B83*(B82^-B85)))/(1-B83))^(-1/B85) -> 
A83: d | B83: =+#REF! -> 
A84: q2 | B84: =+#REF! -> 
A85: r | B85: =+#REF! -> 

Sheet ESCR3 (hidden)
A1: FUNCIONES DE PRODUCCIÓN DE LP | M1: 1
A3: CES EN R3
B6: y | C6: =+'Oculto FPlp'!Q56 -> 200.0
B7: A | C7: 2.0
B8: q1 | C8: 100.0
B9: a | C9: 0.5
B10: q2 | C10: 100.0
B11: r | C11: 150.0
B13: PMgq1 | C13: =+'Oculto FPlp'!Q66 -> 1.0
B14: PMgq2 | C14: =+'Oculto FPlp'!Q67 -> 1.0
B15: RTS | C15: =+'Oculto FPlp'!Q68 -> -1.0
B28: Títulos
B29: Resultados
B30: Insertar datos
